{"text_format":"1","workbook":"xlsx","n_sheets":24,"sheets":["Cover Page","Facility Info","Contents","Operational Data","Operational Summary","Perf. Form 1","Energy Form 1","Improvements","Permit Compliance","Public Liasion","CO2 N2O","Residue Quality ","Water","Air (periodic)","Air (CEMS)","HCl","SO2","NOx","TOC","Particulates","CO 0.5 hourly","CO 95% 10 min","NH3","Template changes log"],"not_rendered":{"charts":8,"images":3,"macros":1,"external_links":0,"defined_names":25,"comments":0,"pivot_tables":0},"unopened":[],"bounds":{"document_bytes":16777216,"sheet_cells":100000,"rows_first":2000,"rows_last":500,"rows_between":2000,"halvings":0,"cell_chars":16384,"cell_head_chars":4096},"cells_cut":0,"cells_raw":0,"read":"whole","date_system":"1900"}

{"sheet":"Cover Page","index":0,"n_rows":53,"n_cols":14,"rows_kept":53,"cut":false,"hidden":false,"merged":[[13,13,18,15],[34,1,34,8],[0,3,5,6],[7,1,23,8],[28,1,28,8],[30,1,30,8],[32,1,32,8],[48,2,48,3],[48,6,48,8],[52,2,52,3],[36,1,36,8],[40,2,40,8],[42,2,42,4],[44,2,44,4],[46,2,46,3],[46,6,46,8]]}
[null,null,null,"Add company logo"]
[null,null,null,null,null,null,null,null,null,null,null,null,null,"Version 24.2a (for incinerators) - 27/11/24"]
[]
[null,null,null,null,null,null,null,null,null,null,null,null,null,"Note that there is another version of this template available for co-incinerators"]
[]
[]
[]
[null,{"$error":"#VALUE!"}]
[]
[]
[]
[]
[null,null,null,null,null,null,null,null,null,null,null,null,null,"Notes:"]
[null,null,null,null,null,null,null,null,null,null,null,null,null,"This template may require adjustments by individual operators to meet specific reporting requirements as defined in the site Permit(s)"]
[]
[]
[]
[]
[]
[]
[]
[]
[]
[]
[]
[]
[]
[]
[null,"Annual Performance Report 2024"]
[]
[null,"Permit EPR/HP3349QK"]
[]
[null,"Wolverhampton Energy from Waste Facility "]
[]
[null,"NA"]
[]
[null,"North Midlands Operations Ltd"]
[]
[null,"Year:",2024]
[]
[null,"Address:","Crown Street Wolverhampton West Midlands WV1 1QB"]
[]
[null,"Tel: ","01902 458888"]
[]
[null,"Email: ","kate.harrop@cobaltenergy.co.uk"]
[]
[null,"Prepared by:","Simon Higgs",null,null,"Position:","Operations Manager"]
[]
[null,"Approved by:","Kate Harrop",null,null,"Position:","Group  Q&E Manager"]
[]
[null,"Version:",1]
[]
[null,"Issue Date:","2025-01-30"]

{"sheet":"Facility Info","index":1,"n_rows":22,"n_cols":11,"rows_kept":22,"cut":false,"hidden":false,"merged":[[4,0,17,8],[21,0,53,8],[4,10,13,13],[21,10,30,13]]}
[{"$f":"+'Cover Page'!$B$29","v":"Annual Performance Report 2024"},null,null,null,{"$f":"+'Cover Page'!$B$33","v":"Wolverhampton Energy from Waste Facility "}]
[]
["Plant Description and Design",null,null,null,null,null,null,null,null,null,"Notes:"]
[]
["The Wolverhampton Energy from Waste Facility utilises municipal waste to recover energy in the form of electricity and steam for export to the local grid. The facility processes approximately 118,000 tpa of waste in two combustion streams which operate using moving grate furnace systems with a combined capacity of up to 14 tonnes per hour.  The heat produced during the incineration process is converted to electrical energy by generating steam in high-pressure boilers and expanding the steam through a steam turbine.  When operating at full load, the plant will typically generate around 8 MW of electricity and, after satisfying its own power needs, exports approximately 7.1 MW of electricity to the grid. \n\nThe installation provides a sustainable method of waste disposal and recovery, predominantly for the area within the administrative boundary of Wolverhampton Metropolitan Borough Council, with smaller quantities of wastes accepted, where capacity and demand exists, from other local authorities within the general vicinity of the plant.\n\nThe process includes waste reception and storage, combustion, waste heat boilers, abatement of flue gases and the onsite storage of residues produced, namely IBA and APCr.\n\nThe plant is operated in accordance with its Environmental Management System which is designed to meet the requirements of ISO14001:2004.  ",null,null,null,null,null,null,null,null,null,"Include summary of plant design, design capacity, no. of combustion lines, electrical and heat capacity and any other general information that describes the facility, its location and purpose "]
[]
[]
[]
[]
[]
[]
[]
[]
[]
[]
[]
[]
[]
[]
["Summary of Operational Processes and Procedures"]
[]
["The principle components of the process comprise the following:\n\nWaste Acceptance and Reception: All waste is delivered directly into the fuel storage building and unloaded into the storage bunkers. When required, the waste is discharged onto the feedstock feed system, which delivers the waste into the furnaces via feed hoppers. All waste is accepted in accordance to the sites waste acceptance procedures.\n\nCombustion: The feed ram ensures that material falls into the moving grate within the furnace in a controlled manner.  The moving grate ensures the waste is agitated as it progresses down the furnace to the ash discharge.  Primary air is introduced beneath the grate causing the waste to go through a series of drying and burning areas.  Secondary air is introduced from above the grate for combustion control.  Auxiliary oil fired burners are located in the combustion chamber for start up and temperature control.  The produced gases are resident in the combustion chamber at the 850°C for at least 2seconds before transfer to the boiler , economiser and abatement plant. \n\nElectricity Generation: Each furnace is equipped with a 2-pass water tube boiler raising steam at 45 bar and 355°C. The steam then passes to a Steam Turbine and Generator, which exports electricity to the grid.\n\nFlue-Gas Cleaning: Flue gas cleaning and pollution control consists of urea injection for De-NOx, semi-dry scrubbing using milk of lime spray for acid gas neutralisation and activated carbon powder injection for absorption and removal of heavy metals, dioxins, VOCs and other harmful substances.  Bag filters remove particulates prior to emission to atmosphere via a single 76m high stack.\n\nProcess effluent is treated onsite in the effluent treatment plant and recycled through the process. Any surplus is discharged to foul sewer. \n\nThe Plant is regulated under the terms of a Permit issued by the Environment Agency (reference HP3349QK) which contains conditions to ensure that the requirements of the Waste Incineration Directive are incorporated and will be met. \nNorth Midlands Operations Ltd operates all of its sites under an Integrated Management System certified to ISO 14001:2015 (environmental management), ISO 9001:2015 (quality management), and ISO 45001:2018 (health and safety management).  \nIn terms of plant operation, the incineration processes have been designed against the background of a detailed assessment of the prevailing environmental conditions at the site location, and are based upon the Best Available Technology (BAT) as detailed both in the original Authorisation application and the application for the Permit issued under the Environmental Permitting (England and Wales) Regulations (As Amended).  These include, but are not limited to, the following:\n• Well proven process plant developed specifically for incineration of municipal solid wastes\n• Efficient, comprehensive process control and monitoring systems to ensure optimum conditions for complete combustion of the wastes and to minimise emissions from the processes\n• Operations confined within buildings under slight negative pressure in order to contain and minimise emissions such as dust and odour\n• Qualified and experienced operating and maintenance personnel to implement procedures to ensure that the required high standards are maintained. Operating and Maintenance Procedures are established according to an internationally recognised system of quality assurance\n• Multi-stage high efficiency flue gas cleaning systems comprising deNOx Selective Non-Catalytic Reduction (SNCR) for the removal of oxides of nitrogen, activated carbon and lime semi-dry acid gas scrubbing for controlling acid gas, dioxins/furans and mercury emissions\n• Final stage flue gas abatement for particulate materials using fabric filtration\n• Residues from the combustion process and from the flue gas cleaning system disposed of by approved means, maximising recycling wherever possible\n• Waste water from the process is neutralised and recycled as far as is practicable to minimise the quantities released to sewers\n• Provision of bunds or double skinned vessels for storage of fuel and chemicals in order to prevent accidental and inappropriate discharge to the public sewers and watercourse. \n• The site complies with the new Waste Incineration BAT Conclusions, which came into effect on 03.12.2023.",null,null,null,null,null,null,null,null,null,"Include summary of key processes and procedures such as (but not limited to); waste reception, control rooms, grate, bed and boiler, energy & heat  generation, cooling systems, residue management, emission controls, health and safety systems, maintenance"]

{"sheet":"Contents","index":2,"n_rows":45,"n_cols":11,"rows_kept":45,"cut":false,"hidden":false,"merged":[[4,10,7,14],[8,1,8,6],[3,1,3,6],[4,1,4,6],[5,1,5,6],[6,1,6,6],[7,1,7,6],[21,1,21,6],[9,1,9,6],[10,1,10,6],[11,1,11,6],[13,1,13,6],[14,1,14,6],[15,1,15,6],[16,1,16,6],[17,1,17,6],[18,1,18,6],[19,1,19,6],[20,1,20,6],[12,1,12,6],[36,1,36,6],[22,1,22,6],[23,1,23,6],[24,1,24,6],[27,1,27,6],[28,1,28,6],[29,1,29,6],[30,1,30,6],[31,1,31,6],[32,1,32,6],[35,1,35,6],[44,0,47,9],[37,1,37,6],[38,1,38,6],[39,1,39,6],[40,1,40,6],[41,1,41,6],[42,1,42,6]]}
[{"$f":"+'Cover Page'!$B$29","v":"Annual Performance Report 2024"},null,null,null,{"$f":"+'Cover Page'!$B$33","v":"Wolverhampton Energy from Waste Facility "}]
[]
["Contents",null,null,null,null,null,null,null,null,null,"Notes:"]
["Section","Subject",null,null,null,null,null,"Page ",null,null,"Section references and Page nos. to be inserted"]
[null,"Facility Information",null,null,null,null,null,2,null,null,"Sections and Subjects may require adjustment by individual operators to meet specific reporting requirements as defined in the sites Permit(s)"]
[null,"Operational Data",null,null,null,null,null,4]
[null,"Operational Summary",null,null,null,null,null,5]
[null,"Performance Form 1",null,null,null,null,null,6]
[null,"Energy Form 1",null,null,null,null,null,7]
[null,"Permit Compliance",null,null,null,null,null,8]
[null,"Improvements",null,null,null,null,null,9]
[null,"Public Liaison",null,null,null,null,null,10]
[null,"Carbon dioxide and nitrous oxide emissions",null,null,null,null,null,11]
[null,"Residue Quality ",null,null,null,null,null,12]
[null,"Emissions to Water",null,null,null,null,null,13]
[null,"Emissions to Air (periodically monitored)",null,null,null,null,null,14]
[null,"Emissions to Air (continuously monitored)",null,null,null,null,null,15]
[null,"Hydrogen Chloride emissions",null,null,null,null,null,16]
[null,"Sulphur Dioxide emissions",null,null,null,null,null,17]
[null,"Oxides of Nitrogen emissions",null,null,null,null,null,18]
[null,"Total Organic Carbon emissions",null,null,null,null,null,19]
[null,"Particulate Matter emissions",null,null,null,null,null,20]
[null,"Carbon Monoxide emissions",null,null,null,null,null,21]
[null,"Ammonia emissions",null,null,null,null,null,22]
[]
[]
["Version Control"]
["Section","Information",null,null,null,null,null,"Date"]
[]
[]
[]
[]
[]
[]
["Distribution"]
["Copy","Name, Role",null,null,null,null,null,"No."]
[]
[]
[]
[]
[]
[]
[]
[]
["This report is required under the Industrial Emissions Directive’s Article 55(2) requirements on reporting and public information on waste incineration plants and co-incineration plants, which require the operator to produce an annual report on the functioning and monitoring of the plant and make it available to the public. "]

{"sheet":"Operational Data","index":3,"n_rows":65,"n_cols":10,"rows_kept":65,"cut":false,"hidden":false,"merged":[[5,9,7,9],[52,0,56,0],[33,1,38,1],[3,1,3,2],[7,1,19,1],[23,1,26,1],[28,1,29,1],[9,9,20,9],[21,9,25,9]]}
[{"$f":"+'Cover Page'!$B$29","v":"Annual Performance Report 2024"},null,null,null,{"$f":"+'Cover Page'!$B$33","v":"Wolverhampton Energy from Waste Facility "}]
[]
["Operational Data"]
["Plant Size",118000,null,"tonnes pa",null,"MWth",null,"MWe",null,"Notes:"]
["No. of combustion lines",2,null,"No. of Turbines:",null,1,null,null,null,"* - RDF to include SRF "]
[null,null,null,null,null,null,null,null,null,"** - Combusted tonnage = tonnes delivered in period + (tonnes in bunker at start of period – tonnes in bunker at end of period), or equivalent calculation depending on plant type"]
["Waste types received","Unit","Q1","Q2","Q3","Q4","Year Total","%"]
["Household / Local Authority","tonnes",18366,17556,17939,17744,{"$f":"SUM(C8:F8)","v":71605},{"$f":"IF(G8>0,G8/$G$18,\"-\")","v":0.79369741844663422}]
["Commercial & Industrial ",null,3325,4757,5156,5374,{"$f":"SUM(C9:F9)","v":18612},0.20630258155336578,null,"*** - CHP plants only"]
["Hazardous ",null,0,0,0,null,0,"-",null,"**** Availability Definition: 'the availability of a line is to be calculated by the number of hours the line reported Continuously Monitored emission levels to the Regulator through the calendar year divided by the total number of hours in that year. \n\nThe overall plant availability is calculated as the Mean of all lines in the plant. For clarity this includes periods of abnormal operation.'  \n\nRationale: The primary function of an Energy from Waste facility is the disposal of waste. It follows therefore that the availability of a plant is determined by the period of time a facility spends undertaking this activity."]
["Clinical",null,0,0,0,null,0,"-"]
["Waste wood (biomass) ",null,0,0,0,null,0,"-"]
["Refuse Derived Fuel * - H'hold/LA",null,0,0,0,null,{"$f":"SUM(C13:F13)","v":0},"-"]
["Refuse Derived Fuel *  - C&I",null,0,0,0,null,0,"-"]
["Other [Please specify]",null,0,0,0,null,0,"-"]
["Other [Please specify]",null,0,0,0,null,0,"-"]
["Other [Please specify]",null,0,0,0,null,0,"-"]
["Total waste received",null,{"$f":"SUM(C8:C17)","v":21691},{"$f":"SUM(D8:D17)","v":22313},{"$f":"SUM(E8:E17)","v":23095},{"$f":"SUM(F8:F17)","v":23118},90217]
["Rejected Waste ",null,0,0,0,0,{"$f":"SUM(C19:F19)","v":0},{"$f":"IF(G19>0,G19/$G$18,\"-\")","v":"-"}]
["Unprocessed waste transferred out",null,0,0,0,165,{"$f":"SUM(C20:F20)","v":165},{"$f":"IF(G20>0,G20/$G$18,\"-\")","v":1.8289235953312568E-3}]
["Total waste combusted **",null,20902,23072,20935,23463,{"$f":"SUM(C21:F21)","v":88372}]
[null,null,null,null,null,null,null,null,null,"Password for protected cells\nA password has been set to prevent accidental  editing of cells with formulae. \nIf you still need to make an edit for some reason then the password = 1234"]
["Energy Usage / Export","Unit","Q1","Q2","Q3","Q4","Year Total","KWh/te"]
["Power Generated","MWh",1468,10040,8532,1056,{"$f":"SUM(C24:F24)","v":21096},{"$f":"IF(G24>0,G24*1000/$G$21,\"-\")","v":238.71814601910108}]
["Power Exported",null,0,6078,5886,0,{"$f":"SUM(C25:F25)","v":11964},{"$f":"IF(G25>0,G25*1000/$G$21,\"-\")","v":135.38224777078713}]
["Power Used on site",null,0,0,0,0,{"$f":"SUM(C26:F26)","v":0},{"$f":"IF(G26>0,G26*1000/$G$21,\"-\")","v":"-"}]
["Power Imported",null,0,0,0,0,0,{"$f":"IF(G27>0,G27*1000/$G$21,\"-\")","v":"-"}]
["Parasitic Load","%",{"$f":"IF(C24>0,1-C25/(C24+C27),\"-\")","v":1},{"$f":"IF(D24>0,1-D25/(D24+D27),\"-\")","v":0.39462151394422307},{"$f":"IF(E24>0,1-E25/(E24+E27),\"-\")","v":0.310126582278481},{"$f":"IF(F24>0,1-F25/(F24+F27),\"-\")","v":1},{"$f":"IF(G24>0,1-G25/(G24+G27),\"-\")","v":0.43287827076222984}]
["Thermal Energy Produced ***","MWh",null,null,null,null,{"$f":"SUM(C29:F29)","v":0},{"$f":"IF(G29>0,G29*1000/$G$21,\"-\")","v":"-"}]
["Thermal Energy Exported ***",null,null,null,null,null,0,{"$f":"IF(G30>0,G30*1000/$G$21,\"-\")","v":"-"}]
["R1 value (if applicable)","R1"]
[]
["Waste Disposal & Recovery","Unit","Q1","Q2","Q3","Q4","Year Total","% inputs"]
["APC Residues - produced","tonnes",654,803,745,4345,{"$f":"SUM(C34:F34)","v":6547},{"$f":"IF(G34>0,G34/$G$21,\"-\")","v":7.4084551667949125E-2}]
["IBA - produced",null,3735,4206,3964,661,12566,{"$f":"IF(G35>0,G35/$G$21,\"-\")","v":0.1421943602045897}]
["Metals recycling",null,359,56,0,0,{"$f":"SUM(C36:F36)","v":415},4.6960575747974475E-3]
["Other",null,0,0,0,0,{"$f":"SUM(C37:F37)","v":0},"-"]
["Other",null,0,0,0,0,0,"-"]
["Other",null,0,0,0,0,0,"-"]
[]
["Raw Material Usage","Unit","Q1","Q2","Q3","Q4","Year Total","kg or Ltr /te"]
["Mains Water","ltrs",23894,23057,26820,23551,{"$f":"SUM(C42:F42)","v":97322},{"$f":"IF(G42>0,G42/$G$21,\"-\")","v":1.1012764223962341}]
["Other Water","ltrs",null,null,null,null,0,{"$f":"IF(G43>0,G43/$G$21,\"-\")","v":"-"}]
["Ammonia","kgs",0,0,0,0,0,"-"]
["Urea","kgs",32000,54000,41000,38000,{"$f":"SUM(C45:F45)","v":165000},1.8671072285339247]
["Activated Carbon","kgs",10000,4000,11000,7000,32000,0.36210564432173087]
["Lime / hydrated lime","kgs",145000,198000,173000,203000,719000,8.1360611958538911]
["Fuel oil","ltrs",35607,37550,28810,8460,110427,1.2495699995473679]
["Gas","cuf",0,0,0,0,0]
["Other",null,0,0,0,0,0]
[]
["Summary ","Line/Unit","Q1","Q2","Q3","Q4","Year Total",null,"Hrs in year "]
["Availability of waste combustion by line, hrs ****",1,1611.5,2015,1714.75,1719,{"$f":"SUM(C53:F53)","v":7060.25},{"$f":"+G53/$I$53","v":0.80596461187214608},8760,"Change this figure to 8784 in a leap year"]
[null,2,1556.5,1548,1538.75,1981,6624.25,{"$f":"+G54/$I$53","v":0.75619292237442925}]
[null,3,"-","-","-","-",0,0]
[null,4,"-","-","-","-",0,0]
[null,5,"-","-","-","-",{"$f":"SUM(C57:F57)","v":0},0]
["Overall Availability, mean avg. of all lines, hrs",null,null,null,null,null,{"$f":"AVERAGE(G53:G54)","v":6842.25},0.78107876712328772]
["Hours of turbine operations, hrs",1,274,2023,1751,269.5,4317.5,0.49286529680365299]
["Hours of turbine operations, hrs",2,"-","-","-","-",0,0]
["Hours of heat / steam export",null,"-","-","-","-",0,{"$f":"IF(B61>0,G60/I53,\"n/a\")","v":"n/a"}]
["Net Calorific Value of waste","MJ/kg",7.1429999999999998,8.1880000000000006,8.8040000000000003,7.6340000000000003]
["Abnormal Events","qty.",2,2,4,0,8,{"$f":"IF(G63>0,\"yes\",\"no\")","v":"yes"}]
["Abnormal operation","hours",4,8,15,0,27,{"$f":"+(G64)/I53","v":3.0821917808219177E-3}]
["Permit Breaches","qty.",2,1,0,2,5,{"$f":"IF(G65>0,\"yes\",\"no\")","v":"yes"}]

{"sheet":"Operational Summary","index":4,"n_rows":69,"n_cols":11,"rows_kept":69,"cut":false,"hidden":false,"merged":[[4,0,26,8],[30,0,51,8],[4,10,13,13],[30,10,39,13],[54,1,54,8],[53,1,53,8],[69,1,69,8],[54,10,64,13],[63,1,63,8],[59,1,59,8],[55,1,55,8],[56,1,56,8],[57,1,57,8],[58,1,58,8],[68,1,68,8],[64,1,64,8],[65,1,65,8],[66,1,66,8],[67,1,67,8],[60,1,60,8],[61,1,61,8],[62,1,62,8]]}
[{"$f":"+'Cover Page'!$B$29","v":"Annual Performance Report 2024"},null,null,null,{"$f":"+'Cover Page'!$B$33","v":"Wolverhampton Energy from Waste Facility "}]
[]
["Summary of Plant Operations and Maintenance during the reporting year",null,null,null,null,null,null,null,null,null,"Notes:"]
[]
["In 2024 tubes leaks have been the main reason for boiler unavailability at the Wolverhampton plant. Boiler 1 availability = 80.38% Boiler 2 availability = 75.41% Steam Turbine availability = 49.15%.\n\nPlanned Outage Started on Monday 9th September 2024 and completed in approximately 26 days.\n\nBoiler Works:\nDue to the amount of tubes leaks throughout 2024 we done a large amount of NDT to discover the thickness of the tubes and replace if below 3.2mm thick. Boiler 1 we replaced 1 x superheater pendant which consist of 37 tubes 9m in length to stainless steel tubing. Boiler 2 we replace 2 x superheater pendants to stainless steel tube. Boiler 1 economizer we replaced 135 bends on the top economizer bank. Throughout Boiler 1 & 2 we grit blasted to remove surface contamination. Also on Both boilers large amounts of refractories was replaced and renewed.  The grate on both boilers was removed, inspected and overhauled.\n\nTurbine Works: \nAfter various electrical tests on the generator we discovered that we had a high PD reading on the stator, the decision was made to send the rotor and stator away to be overhauled. Turbine returned to site on Wednesday 20th November 2024.\n\nBaghouse Works:\nLarge amounts of grit blasting throughout Both streams including all cells. We replaced 3 x cells of bag filters on each steam which consist of 120 filters per cell. Replated a number of cell hoppers which cause air ingress and then eventually blocks the cell. General maintenance on all screws and rotary valves including replacing stream 2’s redler chain.\n\nVarious Other Works:\nStart up burners overhauled. Stack inspected. DCS serviced. Sootblowers inspected and overhauled. ID, FD & ACC Fans inspected and serviced. Unit 1 & 2 hydraulic packs serviced and various hoses replaced. Steam noise baffles inspected. All safety valves overhauled and tested. HV inspections and electrical safety circuits tested. All pressure parts inspected. All instruments throughout plant and turbine calibrated. Numerous valves replaced throughout plant. New transition chute fitted to boiler 2 ash discharger. ",null,null,null,null,null,null,null,null,null,"Include summary of key operational and/or maintenance activity undertaken in the year, such as any major component upgrades and/or replacements "]
[]
[]
[]
[]
[]
[]
[]
[]
[]
[]
[]
[]
[]
[]
[]
[]
[]
[]
[]
[]
[]
[]
[]
["Summary of Residue Handling for the reporting year"]
[]
["Two main sources of residue arise from the operation of the plant:\n- Incinerator Bottom ash (IBA) (which also includes ferrous metals discharged within the ash)\n- Air Pollution Control residues (APCr)\n\nResidues from the flue gas treatment process (APCr) are discharged into an enclosed system which feed into double-skinned heavy-duty bags prior to removal from site for controlled treatment and disposal.  These residues account for under 5% of the total weight of all refuse processed by the facility.\nThe residues were sent to Augean South Ltd's Kings Cliffe East Northants Resource Management Facility (YP3138XB). These residues are ultimately disposed of in specialist landfill.\n\nIncinerator Bottom Ash (IBA) is discharged from the lower end of each grate into a water filled ash discharger, where it is quenched and then ejected onto a conveyor system. \nThe resulting materials are stored in the storage bunkers prior to removal from site for recycling - the storage capacity for bottom ash residues is sufficient to ensure 4 days storage. \nIBA is transferred offsite for further treatment and processing sites regularly between Mondays and Fridays and are scheduled to ensure sufficient storage capacity is maintained at all times. Collections are available at weekends if operational conditions require this facility.\nBottom ash from North Midlands Operations Ltd is currently being sent to Johnsons Aggregates & Recycling Ltd Midlands Urban Mine in Ilkeston (MP3430AM) and Bunny site (DP3493CT).\nAt these sites, the ferrous and trace metals is removed, and the remaining material being further processed into usable aggregate in a zero to landfill process.",null,null,null,null,null,null,null,null,null,"Include in here a summary of residue handling regimes and destinations "]
[]
[]
[]
[]
[]
[]
[]
[]
[]
[]
[]
[]
[]
[]
[]
[]
[]
[]
[]
[]
[]
[]
[{"$f":"+'Cover Page'!C39","v":2024},"Plant shut-downs"]
["Date","Reason for shut-down",null,null,null,null,null,null,null,null,"Provide a very brief reason for plant shut-down e.g. \"Shut-down prior to major outage\"; \"Emergency shut-down due to boiler tube leak\"\n\nThere is no need to include periods of hot-standby here (e.g. to clear feed chute hopper blockages).\n\nFor clinical waste incinerators which require regular shut-downs for boiler cleaning, there is no need to record these here. "]
["2024-02-17","Boiler 1 & 2 Off ready to install turbine after major overhaul & reblade"]
["2024-03-15","Boiler 2 tube leak offline. Online 23/03/2024"]
["2024-03-19","Boiler 1 tube leak offline. Online25/03/2024"]
["2024-04-03","Boiler 2 tube leak offline. Online 09/04/2024"]
["2024-04-15","Boiler 1 & 2 Off tube leak. Online 20/04/2024"]
["2024-05-05","Boiler 2 tube leak. Online 10/05/2024"]
["2024-05-17","Boiler 2 tube leak. Online 25/05/2024"]
["2024-07-09","Boiler 2 tube leak. Online 12/07/2024"]
["2024-08-05","Boiler 2 tube keak.Online 10/08/2024"]
["2024-09-07","Start of annual outage"]
["2024-10-02","Outage Completed"]
["2024-10-26","Boiler 1 offline due to redler. Online 28.10.2024"]
["2024-11-20","Boiler 1 & Boiler 2 offline to carry out baghouse repairs. Boilers online 26/11/2024"]
["2024-12-24","Boiler 1 offline.Online 01/01/2025"]

{"sheet":"Perf. Form 1","index":5,"n_rows":54,"n_cols":10,"rows_kept":54,"cut":false,"hidden":false,"merged":[[9,0,9,9],[10,0,10,1],[10,2,10,3],[10,4,10,5],[10,6,10,7],[10,8,10,9],[2,0,2,4],[2,6,2,8],[3,1,3,4],[5,3,5,4],[5,6,5,7],[8,0,8,1],[8,2,8,3],[8,4,8,5],[8,6,8,7],[8,8,8,9],[11,0,11,1],[11,2,11,3],[11,4,11,5],[11,6,11,7],[11,8,11,9],[12,0,12,1],[12,2,12,3],[12,4,12,5],[12,6,12,7],[12,8,12,9],[15,0,15,1],[15,2,15,3],[15,4,15,5],[15,6,15,7],[15,8,15,9],[16,0,16,9],[13,0,13,1],[13,2,13,3],[13,4,13,5],[13,6,13,7],[13,8,13,9],[14,0,14,3],[14,4,14,5],[14,6,14,7],[14,8,14,9],[17,0,17,1],[17,2,17,3],[17,4,17,5],[17,6,17,7],[17,8,17,9],[18,0,18,1],[18,2,18,3],[18,4,18,5],[18,6,18,7],[18,8,18,9],[19,0,19,1],[19,2,19,3],[19,4,19,5],[19,6,19,7],[19,8,19,9],[20,0,20,1],[20,2,20,3],[20,4,20,5],[20,6,20,7],[20,8,20,9],[21,0,21,1],[21,2,21,3],[21,4,21,5],[21,6,21,7],[21,8,21,9],[22,0,22,3],[22,4,22,5],[22,6,22,7],[22,8,22,9],[31,0,31,3],[31,7,31,8],[32,0,32,3],[32,4,32,5],[32,7,32,8],[33,0,33,3],[33,4,33,5],[33,7,33,8],[23,0,23,3],[23,4,23,5],[23,6,23,7],[23,8,23,9],[25,0,25,9],[26,0,28,9],[36,0,36,3],[36,4,36,5],[36,7,36,8],[37,0,37,3],[37,4,37,5],[37,7,37,8],[34,0,34,3],[34,4,34,5],[34,7,34,8],[35,0,35,3],[35,4,35,5],[35,7,35,8],[47,0,47,1],[49,0,49,9],[50,0,51,9],[38,0,38,9],[39,0,40,9],[43,0,43,1],[43,2,43,9],[45,0,45,1],[46,0,46,1]]}
[{"$f":"+'Cover Page'!C39","v":2024}," Annual Reporting Performance Form 1"]
[]
[{"$f":"+'Cover Page'!B31","v":"Permit EPR/HP3349QK"},null,null,null,null,"Operator: ",{"$f":"+'Cover Page'!B37","v":"North Midlands Operations Ltd"}]
["Facility:",{"$f":"+'Cover Page'!B33:I33","v":"Wolverhampton Energy from Waste Facility "},null,null,null,"Form:","Performance 1"]
[]
["Reporting  Period from: ",null,null,"1st January 2024",null,"to:","31st December 2024"]
[]
[{"$f":"+A1","v":2024},"Annual Reporting of Waste Disposal and Recovery"]
["Waste Description",null,"Disposal Route(s)",null,"Disposal Tonnes",null,"Recovery Tonnes",null,"% / tonne of waste incinerated"]
["1) Hazardous Wastes"]
["APC Residues",null,"D13",null,{"$f":"'Operational Data'!G34","v":6547},null,0,null,{"$f":"IF((E11+G11)>0,(E11+G11)/'Operational Data'!$G$21, \"-\")","v":7.4084551667949125E-2}]
[null,null,null,null,null,null,null,null,{"$f":"IF((E12+G12)>0,(E12+G12)/'Operational Data'!$G$21, \"-\")","v":"-"}]
[null,null,null,null,null,null,null,null,{"$f":"IF((E13+G13)>0,(E13+G13)/'Operational Data'!$G$21, \"-\")","v":"-"}]
[null,null,null,null,null,null,null,null,{"$f":"IF((E14+G14)>0,(E14+G14)/'Operational Data'!$G$21, \"-\")","v":"-"}]
["Total Hazardous Waste",null,null,null,{"$f":"SUM(E11:F14)","v":6547},null,{"$f":"SUM(G11:H14)","v":0},null,{"$f":"IF((E15+G15)>0,(E15+G15)/'Operational Data'!$G$21, \"-\")","v":7.4084551667949125E-2}]
[]
["2) Non-Hazardous Wastes"]
["IBA",null,"R04",null,null,null,{"$f":"'Operational Data'!G35","v":12566},null,{"$f":"IF((E18+G18)>0,(E18+G18)/'Operational Data'!$G$21, \"-\")","v":0.1421943602045897}]
["Ferrous Metal",null,"R04",null,null,null,{"$f":"'Operational Data'!G36","v":415},null,{"$f":"IF((E19+G19)>0,(E19+G19)/'Operational Data'!$G$21, \"-\")","v":4.6960575747974475E-3}]
["Process Water",null,null,null,null,null,326,null,{"$f":"IF((E20+G20)>0,(E20+G20)/'Operational Data'!$G$21, \"-\")","v":3.6889512515276331E-3}]
[null,null,null,null,null,null,null,null,{"$f":"IF((E21+G21)>0,(E21+G21)/'Operational Data'!$G$21, \"-\")","v":"-"}]
[null,null,null,null,null,null,null,null,{"$f":"IF((E22+G22)>0,(E22+G22)/'Operational Data'!$G$21, \"-\")","v":"-"}]
["Total Non-Hazardous Waste",null,null,null,{"$f":"SUM(E18:F22)","v":0},null,{"$f":"SUM(G18:H22)","v":13307},null,{"$f":"IF((E23+G23)>0,(E23+G23)/'Operational Data'!$G$21, \"-\")","v":0.15057936903091476}]
["TOTAL WASTE",null,null,null,{"$f":"+E23+E15","v":6547},null,{"$f":"+G23+G15","v":13307},null,{"$f":"IF((E24+G24)>0,(E24+G24)/'Operational Data'!$G$21, \"-\")","v":0.2246639206988639}]
[]
["Operator’s comments :"]
["Process water recirculated where possible, then discharged as trade effluent to foul sewer for treatement."]
[]
[]
[]
[{"$f":"+A1","v":2024},"Annual Reporting of Water and Other Raw Material Usage"]
["Raw Material",null,null,null,"Usage",null,"Unit","Specific Usage",null,"Unit"]
["Mains Water",null,null,null,{"$f":"+'Operational Data'!G42/1000","v":97.322000000000003},null,"m3",{"$f":"IF(E33>0,E33/'Operational Data'!$G$21,\"-\")","v":1.1012764223962341E-3},null,"m3/te"]
["Total Water",null,null,null,{"$f":"+'Operational Data'!G43+'Operational Data'!G42/1000","v":97.322000000000003},null,"m3",{"$f":"IF(E34>0,E34/'Operational Data'!$G$21,\"-\")","v":1.1012764223962341E-3},null,"m3/te"]
["Urea / Ammonia",null,null,null,{"$f":"+'Operational Data'!G45","v":165000},null,"kg",{"$f":"IF(E35>0,E35/'Operational Data'!$G$21,\"-\")","v":1.8671072285339247},null,"kg/te"]
["Activated Carbon",null,null,null,{"$f":"+'Operational Data'!G46","v":32000},null,"kg",{"$f":"IF(E36>0,E36/'Operational Data'!$G$21,\"-\")","v":0.36210564432173087},null,"kg/te"]
["Lime / hydrated lime / Sodium Bicarb.",null,null,null,{"$f":"+'Operational Data'!G47","v":719000},null,"kg",{"$f":"IF(E37>0,E37/'Operational Data'!$G$21,\"-\")","v":8.1360611958538911},null,"kg/te"]
[]
["Operator’s comments :"]
[]
[]
[]
[{"$f":"+A31","v":2024},"Annual Reporting of other performance indicators "]
["Parameter",null,"Results by Line"]
[null,null,"A1","A2","A3","A4","A5",null,"Turbine 1","Turbine 2"]
["Operating hours for the year, hours",null,7060.25,6624.25]
["Number of periods of abnormal operation, qty.",null,3,5]
["Cumulative hours of abnormal operation for this year, hours",null,11,16]
[]
["Operator’s comments :"]
[]
[]
[]
["Signed: ",null,null,null,null,null,"Date:"]

{"sheet":"Energy Form 1","index":6,"n_rows":29,"n_cols":7,"rows_kept":29,"cut":false,"hidden":false,"merged":[[2,6,2,8],[4,1,4,4],[6,3,6,4],[6,6,6,7],[8,0,8,2],[8,3,8,4],[8,6,8,8],[9,0,9,2],[9,3,9,4],[9,6,9,8],[10,0,10,2],[10,3,10,4],[10,6,10,8],[11,0,11,2],[11,3,11,4],[11,6,11,8],[12,0,12,2],[12,3,12,4],[12,6,12,8],[13,0,13,2],[13,3,13,4],[13,6,13,8],[14,0,14,2],[14,3,14,4],[14,6,14,8],[15,0,15,2],[15,3,15,4],[15,6,15,8],[17,0,17,8],[18,0,24,8]]}
[{"$f":"+'Cover Page'!C39","v":2024}," Annual Reporting of Energy Usage/Export"]
[]
[{"$f":"+'Cover Page'!B31","v":"Permit EPR/HP3349QK"},null,null,null,null,"Operator: ",{"$f":"+'Cover Page'!B37","v":"North Midlands Operations Ltd"}]
[]
["Facility:",{"$f":"+'Cover Page'!B33:I33","v":"Wolverhampton Energy from Waste Facility "},null,null,null,"Form:","Energy 1"]
[]
["Reporting  Period from: ",null,null,{"$f":"+'Perf. Form 1'!D6:E6","v":"1st January 2024"},null,"to:",{"$f":"+'Perf. Form 1'!G6:H6","v":"31st December 2024"}]
[]
["Energy Source",null,null,"Energy Usage",null,"Unit","Specific Usage (KWh/tonne incinerated"]
["Electricity Produced",null,null,{"$f":"+'Operational Data'!G24","v":21096},null,"MWh",{"$f":"+'Operational Data'!H24","v":238.71814601910108}]
["Electricity Imported   ",null,null,{"$f":"+'Operational Data'!G27","v":0},null,"MWh",{"$f":"+'Operational Data'!H27","v":"-"}]
["Electricity Exported",null,null,{"$f":"+'Operational Data'!G25","v":11964},null,"MWh",{"$f":"+'Operational Data'!H25","v":135.38224777078713}]
["Gas Oil",null,null,143667,null,"tonnes"]
["Steam/hot water exported",null,null,{"$f":"+'Operational Data'!G30","v":0},null,"GWh",{"$f":"+'Operational Data'!H30","v":"-"}]
[]
[]
[]
["Operator’s comments :"]
[]
[]
[]
[]
[]
[]
[]
[]
[]
[]
["Signed: ",null,null,null,null,null,"Date:"]

{"sheet":"Improvements","index":7,"n_rows":39,"n_cols":5,"rows_kept":39,"cut":false,"hidden":false,"merged":[[37,0,37,8],[38,0,47,8],[4,0,4,8],[5,0,13,8],[15,0,15,8],[16,0,24,8],[26,0,26,8],[27,0,35,8]]}
[{"$f":"+'Cover Page'!$B$29","v":"Annual Performance Report 2024"},null,null,null,{"$f":"+'Cover Page'!$B$33","v":"Wolverhampton Energy from Waste Facility "}]
[]
["Summary of Plant Improvements"]
[]
["Summary of any efficiency improvements that have been completed within the year."]
["Installation of new Parker CDAS LE130 air dryer on 16/09/2024. The old Parker MSX104 air dryer had a purge rate of 20% @ 7bar, whereas the new air dryer has a purge rate of 3% @ 7bar. This will save an estimated £27,280.00 per year. The replacement of fluorescent  with LED lighting throughout the plant is about 90% complete and on going. Fitting of flow sensors on urea lines and active carbon lines in order for us to tell if there is a blockage in the lines. "]
[]
[]
[]
[]
[]
[]
[]
[]
[]
["Summary of any permit improvement conditions that have been completed within the year and the resulting environmental benefits."]
["IC1 - report to determine the extent to which the plant can minimise NOx emissions below current daily average - was completed and submitted. Associated trials performed in 2023."]
[]
[]
[]
[]
[]
[]
[]
[]
[]
["Summary of any changes to the plant or operating techniques which required a variation to the permit and a summary of the resulting environmental impact."]
[]
[]
[]
[]
[]
[]
[]
[]
[]
[]
["Summary of any other improvements made to the plant or planned to be made and a summary of the resulting environmental benefits."]
["The installation of a fire suppression system is being planned for 2025; this should significantly reduce the potential environmental impact of a fire. \n\nA survey of the legacy drainage system was completed in 2024 to improve our records. Areas for repair and upgrade were identified and this work carried out. This should reduce the risk of fugitive emissions to surfacewater."]

{"sheet":"Permit Compliance","index":8,"n_rows":33,"n_cols":12,"rows_kept":33,"cut":false,"hidden":false,"merged":[[36,7,36,9],[34,7,34,9],[33,7,33,9],[36,1,36,3],[36,4,36,6],[33,1,33,3],[33,4,33,6],[34,1,34,3],[34,4,34,6],[35,1,35,3],[35,4,35,6],[35,7,35,9],[37,4,37,8],[9,0,9,1],[9,2,9,4],[9,5,9,8],[10,0,10,1],[10,2,10,4],[10,5,10,8],[11,0,11,1],[11,2,11,4],[11,5,11,8],[12,0,12,1],[12,2,12,4],[12,5,12,8],[13,0,13,1],[13,2,13,4],[13,5,13,8],[7,0,7,1],[7,2,7,8],[8,0,8,1],[8,2,8,4],[8,5,8,8],[32,1,32,3],[32,4,32,6],[32,7,32,9],[19,1,19,2],[19,3,19,5],[31,1,31,3],[31,4,31,6],[31,7,31,9],[21,4,21,5],[22,4,22,5],[25,1,25,2],[25,4,25,5],[26,1,26,2],[26,4,26,5],[27,1,27,2],[27,4,27,5],[30,0,30,10],[18,0,18,10],[14,0,14,1],[14,2,14,4],[28,0,28,8],[19,7,19,8],[14,5,14,8],[15,0,15,1],[16,2,16,4],[16,5,16,8],[15,2,15,4],[15,5,15,8],[16,0,16,1],[21,1,21,2],[22,1,22,2],[8,11,20,11],[23,1,23,2],[23,4,23,5],[24,1,24,2],[24,4,24,5]]}
[{"$f":"+'Cover Page'!$B$29","v":"Annual Performance Report 2024"},null,null,null,{"$f":"+'Cover Page'!$B$33","v":"Wolverhampton Energy from Waste Facility "}]
[]
["Summary of Permit Compliance"]
[]
["Compliance with permit limits for continuously monitored pollutants"]
[]
["The plant met its emission limits as shown in the table below:"]
["Substance",null,"Percentage time compliant during operationNote 1",null,null,null,null,null,null,null,null,"Notes:"]
[null,null,"Half-hourly limit",null,null,"Daily limit",null,null,null,null,null,"Note 1: Please report to 2 decimal places, i.e. xx.xx%\n\nNote 2: Please enter into this table any permit non-compliances that the EA has given a CCS score for. Please also enter any other non-compliances which you have notified to the EA (e.g. ELV exceedances) but which have not yet been assessed by the EA. There is no need to enter any notifications which were subsequently assessed by the EA not to be permit breaches.  \n\nNote 3: Please enter information here (rather than just referencing the notifications that were sent to the EA) including where relevant the incineration line reference, pollutant and value of the measured result for any ELV exceedances.   \n\n"]
["Particulates",null,{"$f":"('Operational Data'!I53-1)/'Operational Data'!I53","v":0.99988584474885844},null,null,{"$f":"('Operational Data'!I53 - 24)/'Operational Data'!I53","v":0.99726027397260275}]
["Oxides of nitrogen",null,{"$f":"'Operational Data'!I53/'Operational Data'!I53","v":1},null,null,{"$f":"'Operational Data'!I53/'Operational Data'!I53","v":1}]
["Sulphur dioxide",null,{"$f":"'Operational Data'!I53/'Operational Data'!I53","v":1},null,null,{"$f":"'Operational Data'!I53/'Operational Data'!I53","v":1}]
["Carbon monoxide",null,{"$f":"('Operational Data'!I53-1.833)/'Operational Data'!I53","v":0.99979075342465751},null,null,{"$f":"'Operational Data'!I53/'Operational Data'!I53","v":1}]
["Total organic carbon",null,{"$f":"('Operational Data'!I53-1.5)/'Operational Data'!I53","v":0.99982876712328772},null,null,{"$f":"'Operational Data'!I53/'Operational Data'!I53","v":1}]
["Hydrogen chloride",null,{"$f":"('Operational Data'!I53-0.5)/'Operational Data'!I53","v":0.99994292237442928},null,null,{"$f":"('Operational Data'!I53-24)/'Operational Data'!I53","v":0.99726027397260275}]
["Hydrogen fluoride",null,{"$f":"'Operational Data'!I53/'Operational Data'!I53","v":1},null,null,{"$f":"'Operational Data'!I53/'Operational Data'!I53","v":1}]
["Ammonia",null,"N/A",null,null,{"$f":"'Operational Data'!I53/'Operational Data'!I53","v":1}]
[]
["Summary of non-compliances under the permit Note 2"]
["Date","Summary of non-compliance Note 3",null,"Reason ",null,null,"Measures taken to prevent reoccurrence","CCS score if applicable*"]
[null,null,null,null,null,null,null,"Impact","Root cause"]
["2024-03-11","A1 TOC Half-Hour Exceedance (113.74mg/m3)",null,null,"DCS Processor failed causing O2 reading to fail stopping feeder and grate which coincided with the removal of boiler instruments ready for the bang and clean",null,"Boiler instruments refitted. DCS Processor rebooted and returned to service.","C4","N/A"]
["2024-03-11","A2 TOC Half-Hour Exceedance (28.94mg/m3)",null,null,"DCS Processor failed causing O2 reading to fail stopping feeder and grate which coincided with the removal of boiler instruments ready for the bang and clean",null,"Boiler instruments refitted. DCS Processor rebooted and returned to service.","C4","N/A"]
["2024-04-04","A1 TOC Half-Hour Exceedance (24.96 mg/m3)",null,null,"VOC exceeded due to unburnt poor waste and molten waste across grate",null,"Increased frequency  of waste inspections","C4","N/A"]
["2024-06-02","A1 HCl Half-Hour (178.67 mg/m3) and Daily Exceedance (28.1mg/m3) ",null,null,"Issues with management of abatement equipment - lime turbine spares.",null,"Introduction of effective inhouse cleaning method for spares.","C3","Management Failure"]
["2024-10-03","A1 CO 11x10min Exceedances \n15:40 to 15:49 466.08mg/m3, \n16:10 to 16:19 316.04mg/m3, \n16:20 to 16:29 301.11mg/m3, \n17:10 to 17:19 157.96mg/m3, \n20:40 to 20:49 187.78mg/m3, \n20:50 to 20:59 222.52mg/m3, \n21:40 to 21:49 219.49mg/m3, \n23:10 to 23:19 389.51mg/m3, \n23:20 to 23:29 878.83mg/m3, \n23:30 to 23:39 583.59mg/m3, \n23:40 to 23:49 682.72mg/m3",null,null,"Intermittent fault with ballcock on ash discharge water level causing intermittent loss of seal on boiler.",null,"Fixed issue. Provided refresher training on start-up activity checklist. ","C4","N/A"]
["2024-10-03","A1 PM Half-Hour (88.78mg/m3) and Daily Exceedance","Daily",null,"Damage to bag filter detected on return to service after outage.",null,"Provided refresher training on start-up activity checklist. ","C4","N/A"]
["2024-12-19","A1 PM Half-Hour (31.30mg/m3)  Exceedance","Daily",null,"11KV incomer trip caused plant trip.",null,"Fixed underlying generator issues.","C4","N/A"]
["*If the Environment Agency (EA) has given a Compliance Classification Scheme (CCS) score due to a permit non-compliance it should be entered here (CCS4 = No impact; CCS3 = Minor impact; CCS2 = Significant impact; CCS1 = Major impact). If the EA has not yet assessed a non-compliance which you have notified to them, these columns should be left blank. Enter N/A if no score was given for the root cause.  "]
[]
["Summary of any complaints received and actions to taken to resolve them."]
["Date","Summary of complaint [including Line/Reference]",null,null,"Reason (including whether substantiated by the operator or the EA)",null,null,"Measures taken to prevent reoccurrence"]
["NA","NA",null,null,"NA",null,null,"NA"]

{"sheet":"Public Liasion","index":9,"n_rows":29,"n_cols":5,"rows_kept":29,"cut":false,"hidden":false,"merged":[[16,0,16,1],[16,2,16,8],[5,0,5,1],[5,2,5,8],[6,0,7,1],[6,2,7,8],[8,0,9,1],[8,2,9,8],[10,0,11,1],[10,2,11,8],[12,0,13,1],[12,2,13,8],[15,0,15,8],[17,0,18,1],[17,2,18,8],[19,0,20,1],[19,2,20,8],[21,0,22,1],[21,2,22,8],[23,0,24,1],[23,2,24,8],[25,0,26,1],[25,2,26,8],[28,0,28,8]]}
[{"$f":"+'Cover Page'!$B$29","v":"Annual Performance Report 2024"},null,null,null,{"$f":"+'Cover Page'!$B$33","v":"Wolverhampton Energy from Waste Facility "}]
[]
["Details of Public & Stakeholder Liaison"]
[]
["Summary of events held during the reporting year."]
["Date",null,"Description"]
["Jan 24-Dec 24",null,"Routine liaison meetings with CWC on health, safety, environmental and operational matters."]
[]
[]
[]
[]
[]
[]
[]
[]
["List of events planned for next year"]
["Date",null,"Description"]
["Jan 25-Dec 25",null,"Continue to hold routine liaison meetings with CWC on health, safety, environmental and operational matters."]
[]
[]
[]
[]
[]
[]
[]
[]
[]
[]
["If you wish to be involved in the public liaison programme, please contact _________________"]

{"sheet":"CO2 N2O","index":10,"n_rows":25,"n_cols":6,"rows_kept":25,"cut":false,"hidden":false,"merged":[[25,1,25,3],[16,2,16,3],[4,0,4,3],[9,0,9,3],[17,0,17,3],[13,0,13,3],[12,0,12,1],[8,2,8,3],[11,2,11,3],[19,2,19,3],[22,2,22,3]]}
[{"$f":"+'Cover Page'!$B$29","v":"Annual Performance Report 2024"},null,{"$f":"+'Cover Page'!$B$33","v":"Wolverhampton Energy from Waste Facility "}]
[]
["Carbon dioxide emissions and biogenic content of waste inputs",null,null,null,null,"Notes:"]
[]
["Carbon dioxide emissions (all types of plant)"]
[null,"Annual mass of carbon dioxide released","tonnes ",83323]
[null,"Annual mass of carbon dioxide released per tonne of waste burned","t CO2 / t waste ",{"$f":"D6/'Operational Data'!G21","v":0.9428665188068619}]
[null,"Annual mass of carbon dioxide released per MWh of energy exported","t CO2 / MWh export ",{"$f":"D6/'Operational Data'!G25","v":6.964476763624206}]
[null,"Description of how annual carbon dioxide mass emission has been calculated. \nSee Note 1","CEMS CO2 Monitoring",null,null,"Note 1: All permits require operators to continuously monitor CO2 to EN14181 and flow to BS EN 16911-2 (unless otherwise agreed in writing). Operators must therefore use the results from these instruments to calculate their annual CO2 emissions. Where an operator does not have a flow meter calibrated to BS EN 16911-2, the averaged flow measurement from that year's periodic monitoring can be used instead. If the plant does not have calibrated CO2 CEMS, a suitably justified emissions factor can be used."]
["Nitrous oxide emissions (only plants which use ammonia or urea to abate NOx emissions)"]
[null,"Annual mass emissions of nitrous oxide","tonnes N2O",8.8000000000000007]
[null,"Description of how annual nitrous oxide mass emission has been calculated\nSee Note 2","CEMS CO2 Monitoring",null,null,"Note 2: All permits require operators to continuously monitor N2O to EN14181 and flow to BS EN 16911-2, unless otherwise agreed in writing. Operators must therefore use the results from these instruments to calculate their annual N2O emissions. Where an operator does not have a flow meter calibrated to BS EN 16911-2, the averaged flow measurement from periodic monitoring can be used instead. If the plant does not have calibrated N2O CEMS, data from periodic monitoring or a suitably justified emissions factor can be used instead."]
["Total annual carbon dioxide + nitrous oxide emissions. \nSee Note 3. ",null,"tonnes CO2e",{"$f":"D6+(D11*265)","v":85655},null,"Note 3: Total annual carbon dioxide and nitrous oxide emissions reported as carbon dioxide equivalent where 1 tonne nitrous oxide is equivalent to 265 tonnes carbon dioxide."]
["Biogenic CO2 emissions (See Note 4)",null,null,null,null,"Note 4: Only plants combusting residual municipal waste, refuse derived fuel or solid recovered fuel need complete this section. "]
[null,"Percentage of total carbon dioxide emissions arising from biogenic waste","%",0.54120000000000001]
[null,"No. of measurements undertaken","Number",1]
[null,"Description of how percentage biogenic carbon dioxide emissions have been measured or calculated.\nSee Note 5","Waste compositional analysis.",null,null,"Note 5: The results from C14 sampling should be used if this is carried out at the plant (either via an installed sampler or from spot samples).  \nOtherwise, as an approximation (and in lieu of any more accurate metrics which may be developed in future), the measured or estimated biogenic fraction by net calorific value (see Note 6) can be assumed to be the same as the biogenic CO2 fraction of the total CO2 emissions from the plant. "]
["Biogenic fraction of waste feedstock (See Note 4)"]
[null,"Yearly average biogenic percentage of the waste by net calorific value (NCV)","%",0.54120000000000001]
[null,"Description of how biogenic percentage (by NCV) has been calculated or estimated. \nSee Note 6","Waste compositional analysis.",null,null,"Note 6: If C14 sampling is carried out at the plant, the methodology set out in the embedded document entitled \"Renewable Energy Association Energy Content of Fuels - Description of Method\" embedded below can be used to calculate the biogenic percentage by net calorific value. Otherwise, data from waste sampling or BIOMA software can be used; or if none of these are available, an estimated figure with justification or a figure assumed on the basis of up-to-date industry data can be used. "]
[null,"Yearly average biogenic percentage of the waste by mass","%",0.54120000000000001]
[null,"If waste sampling undertaken, no. of samples used to ascertain average biogenic percentages above","Number",1]
[null,"Description of how biogenic percentage (by mass) has been calculated or estimated. \nSee Note 7","In accordance with Ofgem-approved fuel measurement and sampling plan.",null,null,"Note 7: Where available, data from waste sampling should be used; otherwise, an estimated figure with justification can be used, or a figure assumed on the basis of up-to-date industry data. "]
[]
[null,"Comments:"]

{"sheet":"Residue Quality ","index":11,"n_rows":37,"n_cols":6,"rows_kept":37,"cut":false,"hidden":false,"merged":[[9,0,10,6],[14,0,15,1],[14,2,15,6],[20,0,21,1],[20,2,21,6],[16,0,17,1],[16,2,17,6],[18,0,19,1],[18,2,19,6],[12,0,12,6],[13,0,13,1],[13,2,13,6],[33,0,33,6],[22,0,23,1],[22,2,23,6],[31,3,31,4],[27,2,28,2],[28,3,28,4],[28,5,28,6],[27,3,27,6],[26,0,26,6],[5,0,6,6],[7,0,8,6],[36,0,41,6],[32,3,32,4],[35,0,35,6],[27,0,28,1],[29,0,29,1],[30,0,30,1],[31,0,31,1],[32,0,32,1],[29,3,29,4],[30,3,30,4],[29,5,29,6],[30,5,30,6],[31,5,31,6],[32,5,32,6]]}
[{"$f":"+'Cover Page'!$B$29","v":"Annual Performance Report 2024"},null,null,null,{"$f":"+'Cover Page'!$B$33","v":"Wolverhampton Energy from Waste Facility "}]
[]
["Residue Quality Monitoring Requirements"]
[]
["Summary of monitoring undertaken and compliance"]
["IBA and APCr are tested in accordance with the site's permit. "]
[]
["IBA is also sampled and analysed in accordance with the ESA protocol."]
[]
[]
[]
[]
["Commentary on any specific events"]
["Date & Event",null,"Description"]
[]
[]
[]
[]
[]
[]
[]
[]
[]
[]
[]
[]
["Residue Quality Monitoring Results"]
["Parameter (unit) ",null,"Limit*","Normal Operation "]
[null,null,null,"Bottom ash  ",null,"APC Residues"]
["Loss on Ignition (average %)",null,"<5%"]
["Total Organic Carbon (average %)",null,"<3%",1.6E-2]
["No. of Assessments Undertaken",null,"---",28,null,4]
["No. of Hazardous Results",null,"---",0]
["* The permit will specify a limit of either 5% loss on ignition or 3% total organic carbon. If both are measured anyway, please enter the results here, even where the limit does not apply. "]
[]
["Comments :"]
["Only TOC ELV stated on the Permit."]

{"sheet":"Water","index":12,"n_rows":32,"n_cols":9,"rows_kept":32,"cut":false,"hidden":false,"merged":[[5,0,6,8],[7,0,8,8],[9,0,10,8],[12,0,12,8],[13,0,13,1],[13,2,13,8],[21,0,21,8],[22,0,22,2],[22,3,22,4],[14,0,15,1],[14,2,15,8],[16,0,17,1],[16,2,17,8],[18,0,19,1],[18,2,19,8],[23,0,23,2],[23,3,23,4],[24,0,24,2],[24,3,24,4],[25,0,25,2],[25,3,25,4],[32,0,32,2],[32,3,32,4],[26,0,26,2],[26,3,26,4],[29,0,29,2],[29,3,29,4],[31,0,31,2],[31,3,31,4],[27,0,27,2],[27,3,27,4],[28,0,28,2],[28,3,28,4],[30,0,30,2],[30,3,30,4]]}
[{"$f":"+'Cover Page'!$B$29","v":"Annual Performance Report 2024"},null,null,null,{"$f":"+'Cover Page'!$B$33","v":"Wolverhampton Energy from Waste Facility "}]
[]
["Emissions to Water"]
[]
["Summary of monitoring undertaken and compliance"]
["Waste water arising from the process is neutralised and recycled for use in process as far as is practicible in order to minimise the quantity released to sewer."]
[]
["Annual sample taken and analysed.  All results below limits given in discharge consent."]
[]
[]
[]
[]
["Commentary on any specific events"]
["Date & Event",null,"Description"]
[]
[]
[]
[]
[]
[]
[]
["Emissions to Water / Sewer"]
["Parameter",null,null,"Monitoring Frequency",null,"Limit","Target","Max.","Average"]
["pH",null,null,"Annual",null,"6-10","N/A",8.5,8.5]
["Suspended Solids (mg/l)",null,null,"Annual",null,"0-400","N/A",40,40]
["Cadmium (total) as Cd (mg/l)",null,null,"Annual",null,"N/A","N/A",2.9E-4,2.9E-4]
["Chromium (total) as Cr (mg/l)",null,null,"Annual",null,"N/A","N/A",0.20300000000000001,0.20300000000000001]
["Lead (total) as Pb (mg/l)",null,null,"Annual",null,"N/A","N/A",2.3999999999999998E-3,2.3999999999999998E-3]
["Nickel (total) as Ni (mg/l)",null,null,"Annual",null,"N/A","N/A",8.0999999999999996E-3,8.0999999999999996E-3]
["Zinc (total) as Zn (mg/l)",null,null,"Annual",null,"0-5","N/A",2.3E-2,2.3E-2]
["Phosphorus (total) as P (mg/l)",null,null,"Annual",null,"0-25","N/A",0.28100000000000003,0.28100000000000003]
["COD 1 hr settled",null,null,"Annual",null,"0-800","N/A",123,123]

{"sheet":"Air (periodic)","index":13,"n_rows":40,"n_cols":11,"rows_kept":40,"cut":false,"hidden":false,"merged":[[9,0,10,1],[9,5,9,9],[9,3,10,4],[9,2,10,2],[5,10,8,13],[9,10,11,13],[8,0,8,9],[5,0,6,9],[11,0,11,1],[13,0,13,1],[14,0,14,1],[15,0,15,1],[12,0,12,1],[11,3,11,4],[12,3,12,4],[40,0,41,9],[26,0,26,1],[27,0,27,1],[23,0,23,1],[24,0,24,1],[38,0,38,1],[28,0,28,1],[29,0,29,1],[30,0,30,1],[31,0,31,1],[32,0,32,1],[33,0,33,1],[38,3,38,4],[30,3,30,4],[31,3,31,4],[37,3,37,4],[39,0,39,9],[19,0,19,1],[20,0,20,1],[21,0,21,1],[35,3,35,4],[36,3,36,4],[34,0,34,1],[35,0,35,1],[36,0,36,1],[37,0,37,1],[25,0,25,1],[33,3,33,4],[28,3,28,4],[34,3,34,4],[19,3,19,4],[20,3,20,4],[23,3,23,4],[24,3,24,4],[25,3,25,4],[32,3,32,4],[26,3,26,4],[27,3,27,4],[29,3,29,4],[22,0,22,1],[22,3,22,4],[13,10,14,12],[15,10,16,10],[15,11,16,11],[15,12,16,12],[18,3,18,4],[13,3,13,4],[14,3,14,4],[15,3,15,4],[16,3,16,4],[17,3,17,4],[21,3,21,4],[16,0,16,1],[17,0,17,1],[18,0,18,1]]}
[{"$f":"+'Cover Page'!$B$29","v":"Annual Performance Report 2024"},null,null,null,{"$f":"+'Cover Page'!$B$33","v":"Wolverhampton Energy from Waste Facility "}]
[]
["Emissions to Air (periodically monitored)"]
[]
["Summary of monitoring undertaken, standards used and compliance",null,null,null,null,null,null,null,null,null,"Notes:"]
[null,null,null,null,null,null,null,null,null,null,"Template may require adjustment for any bespoke monitoring requirements of permit - please also check that all default ELV values, reference periods and the stated oxygen reference value match those for your plant, and edit if necessary!"]
[]
[]
["Results of emissions to air that are periodically monitored - oxygen reference 11% "]
["Substance",null,"Ref. Period","Emission Limit Value",null,"Average",null,null,null,null,"User to add additional tables as necessary, depending on whether quarterly or bi-annual reporting is required for the compliance year"]
[null,null,null,null,null,"A1","A2","A3","A4","A5"]
["Hydrogen fluoride",null,"1 hr","1 mg/m3",null,0.155,0.14000000000000001]
["Cd and Tl and their compounds",null,"0.5-8hrs","0.02 mg/m3",null,2.5999999999999999E-3,2.5000000000000001E-3]
["Hg and its compounds",null,"0.5-8hrs","0.02 mg/m3",null,7.8499999999999993E-3,1.4499999999999999E-3]
["Sb, As, Pb, Cr, Co, Cu, Mn, Ni, V and their compounds",null,"0.5-8hrs","0.3 mg/m3",null,0.16550000000000001,0.16500000000000001]
["Dioxins & Furans (I-TEQ)",null,"6-8hrs","0.06 ng/m3",null,2.4074999999999999E-2,3.2399999999999998E-2]
["PCBs (WHO-TEQ Humans / Mammals)",null,"6-8hrs","None set ng/m3",null,5.0400000000000002E-3,2.1549999999999998E-3]
["PCBs (WHO-TEQ Fish)",null,"6-8hrs","None set ng/m3",null,2.365E-4,1.06E-4]
["PCBs (WHO-TEQ Birds)",null,"6-8hrs","None set ng/m3",null,1.209E-2,4.3350000000000003E-3]
["Dioxins & Furans (WHO-TEQ Humans / Mammals)",null,"6-8hrs","None set ng/m3",null,3.9875000000000001E-2,3.1649999999999998E-2]
["Dioxins & Furans (WHO-TEQ Fish)",null,"6-8hrs","None set ng/m3",null,4.6550000000000001E-2,3.5099999999999999E-2]
["Dioxins & Furans (WHO-TEQ Birds)",null,"6-8hrs","None set ng/m3",null,0.100925,4.9299999999999997E-2]
["Polybrominated dibenzo-dioxins and furans",null,"6-8hrs","None set ng/m3",null,4.6750000000000003E-3,1.72E-3]
["Anthanthrene",null,"6-8hrs","None set µg/m3",null,"<0.002 ","<0.003 "]
["Benzo(a)anthracene",null,"6-8hrs","None set µg/m3",null,"<0.002 ",4.0000000000000001E-3]
["Benzo(a)pyrene",null,"6-8hrs","None set µg/m3",null,"<0.002 ","<0.003 "]
["Benzo(b)fluoranthene",null,"6-8hrs","None set µg/m3",null,"<0.002 ",3.0000000000000001E-3]
["Benzo(b)naptho(2,1-d) thiophene",null,"6-8hrs","None set µg/m3",null,"<0.002 ","<0.003 "]
["Benzo(c)phenanthrene",null,"6-8hrs","None set µg/m3",null,"<0.002 ","<0.003"]
["Benzo(ghi)perylene",null,"6-8hrs","None set µg/m3",null,"<0.002 ",3.0000000000000001E-3]
["Benzo(k)fluoranthene",null,"6-8hrs","None set µg/m3",null,"<0.002 ","<0.003 "]
["Cholanthrene",null,"6-8hrs","None set µg/m3",null,"<0.002 ","<0.003 "]
["Chrysene",null,"6-8hrs","None set µg/m3",null,4.0000000000000001E-3,4.0000000000000001E-3]
["Cyclopenta(cd)pyrene",null,"6-8hrs","None set µg/m3",null,"<0.002 ","<0.003 "]
["Dibenzo(ai)pyrene",null,"6-8hrs","None set µg/m3",null,"<0.002 ","<0.003 "]
["Dibenzo(ah)anthracene",null,"6-8hrs","None set µg/m3",null,"<0.002 ","<0.003 "]
["Fluoranthene",null,"6-8hrs","None set µg/m3",null,3.2000000000000001E-2,5.2999999999999999E-2]
["Indeno(123-cd) pyrene",null,"6-8hrs","None set µg/m3",null,"<0.002 ","<0.003 "]
["Naphthalene",null,"6-8hrs","None set µg/m3",null,0.106,0.505]
["Comments :"]

{"sheet":"Air (CEMS)","index":14,"n_rows":28,"n_cols":14,"rows_kept":28,"cut":false,"hidden":false,"merged":[[14,13,15,13],[14,14,15,14],[14,15,15,15],[12,13,13,15],[26,0,26,12],[28,0,29,12],[13,0,14,0],[5,0,6,12],[7,0,8,12],[10,0,10,12],[11,0,12,0],[11,2,12,2],[11,1,12,1],[11,3,11,4],[11,5,11,6],[11,7,11,8],[11,9,11,10],[11,11,11,12]]}
[{"$f":"+'Cover Page'!$B$29","v":"Annual Performance Report 2024"},null,null,null,null,null,null,null,{"$f":"+'Cover Page'!$B$33","v":"Wolverhampton Energy from Waste Facility "}]
[]
["Emissions to Air (continuously monitored)"]
[null,null,null,null,null,null,null,null,null,null,null,null,null,"Notes:"]
["Summary of monitoring undertaken, standards used and compliance",null,null,null,null,null,null,null,null,null,null,null,null,"Template may require adjustment for any bespoke monitoring requirements of permit"]
[null,null,null,null,null,null,null,null,null,null,null,null,null,"Please check that all default ELV values match those for your plant and edit if necessary!"]
[null,null,null,null,null,null,null,null,null,null,null,null,null,"Report to 1 decimal place"]
[]
[]
[]
["Results of emissions to air that are continuously monitored (maximum and average values for each line) - oxygen reference 11%"]
["Substance","Reference Period","Emission Limit Value","A1",null,"A2",null,"A3",null,"A4",null,"A5"]
[null,null,null,"Max.","Avg.","Max.","Avg.","Max.","Avg.","Max.","Avg.","Max.","Avg."]
["Oxides of nitrogen","Daily mean","180 mg/m3 ",{"$f":"NOx!O19","v":175},{"$f":"NOx!N19","v":169.61833333333331},{"$f":"NOx!O34","v":181},{"$f":"NOx!N34","v":170.51083333333335}]
[null,"½ hourly mean","400 mg/m3 ",{"$f":"NOx!M19","v":333},{"$f":"NOx!L19","v":169.77916666666667},{"$f":"NOx!M34","v":373},{"$f":"NOx!L34","v":170.78749999999999}]
["Particulates","Daily mean","5 mg/m3",{"$f":"Particulates!O19","v":2},{"$f":"Particulates!N19","v":0.62333333333333341},{"$f":"Particulates!O34","v":1},{"$f":"Particulates!N34","v":0.22166666666666668}]
[null,"½ hourly mean","30 mg/m3 ",{"$f":"Particulates!M19","v":89},{"$f":"Particulates!L19","v":0.66666666666666663},{"$f":"Particulates!M34","v":12},{"$f":"Particulates!L34","v":0.24500000000000002}]
["Total Organic Carbon ","Daily mean","10 mg/m3 ",{"$f":"TOC!O19","v":2},{"$f":"TOC!N19","v":0.14583333333333334},{"$f":"TOC!O34","v":0},{"$f":"TOC!N34","v":0}]
[null,"½ hourly mean","20 mg/m3 ",{"$f":"TOC!M19","v":114},{"$f":"TOC!L19","v":0.16416666666666668},{"$f":"TOC!M34","v":29},{"$f":"TOC!L34","v":6.25E-2}]
["Hydrogen chloride ","Daily mean","8 mg/m3 ",{"$f":"HCl!O19","v":28},{"$f":"HCl!N19","v":4.9658333333333333},{"$f":"HCl!O34","v":8},{"$f":"HCl!N34","v":4.7525000000000004}]
[null,"½ hourly mean","60 mg/m3 ",{"$f":"HCl!M19","v":179},{"$f":"HCl!L19","v":4.9641666666666673},{"$f":"HCl!M34","v":41},{"$f":"HCl!L34","v":4.7300000000000004}]
["Sulphur dioxide","Daily mean","40 mg/m3 ",{"$f":"'SO2'!O19","v":32},{"$f":"'SO2'!N19","v":16.993333333333336},{"$f":"'SO2'!O34","v":33},{"$f":"'SO2'!N34","v":17.01583333333333}]
[null,"½ hourly mean","200 mg/m3 ",{"$f":"'SO2'!M19","v":173},{"$f":"'SO2'!L19","v":16.978333333333335},{"$f":"'SO2'!M34","v":105},{"$f":"'SO2'!L34","v":17.029999999999998}]
["Carbon monoxide ","Daily mean","50 mg/m3 ",{"$f":"'CO 95% 10 min'!Q22","v":31},{"$f":"'CO 95% 10 min'!P22","v":3.8641666666666663},{"$f":"'CO 95% 10 min'!Q37","v":25},{"$f":"'CO 95% 10 min'!P37","v":4.4849999999999994}]
[null,"95%ile 10-min avg *","150 mg/m3 *",{"$f":"'CO 95% 10 min'!M22","v":233},{"$f":"'CO 95% 10 min'!N22","v":3.8341666666666669},{"$f":"'CO 95% 10 min'!M37","v":89},{"$f":"'CO 95% 10 min'!N37","v":4.6924999999999999}]
[" Ammonia","Daily mean","15 mg/m3 ",{"$f":"'NH3'!O19","v":18},{"$f":"'NH3'!N19","v":4.5774999999999997},{"$f":"'NH3'!O34","v":17},{"$f":"'NH3'!N34","v":3.0233333333333334}]
["* = delete as appropriate, depending on whether your plant has half-hourly or 10-min CO ELVs\n"]
["Comments :"]

{"sheet":"HCl","index":15,"n_rows":79,"n_cols":17,"rows_kept":79,"cut":false,"hidden":false,"merged":[[12,16,15,18],[51,9,63,9],[66,9,78,9],[4,9,4,14],[4,1,4,3],[4,4,4,6],[48,0,51,6],[47,0,47,6],[6,9,18,9],[21,9,33,9],[36,9,48,9],[3,16,7,18],[9,16,11,18],[18,4,18,6]]}
[{"$f":"+'Cover Page'!$B$29","v":"Annual Performance Report 2024"},null,null,null,{"$f":"+'Cover Page'!$B$33","v":"Wolverhampton Energy from Waste Facility "}]
[]
["Monitoring of Hydrogen Chloride emissions",null,null,"Whole Installation",null,null,"See  Notes in Cell Q3",null,null,{"$f":"+A3","v":"Monitoring of Hydrogen Chloride emissions"},null,null,null,"Per Combustion Line",null,null,"Notes:"]
[null,null,null,null,null,null,null,null,null,null,null,null,null,null,null,null,"User to add logic to complete Whole installation, Table A5:G18. From the data in Per Combustion Line, Table J6:O79, subject to No. of lines installed"]
[{"$f":"+'Cover Page'!C39","v":2024},"1/2 Hourly Reference Periods",null,null,"Daily Reference Periods"]
["mg/Nm3","1/2 hourly HCl ELV","Monthly mean of half-hourly averages","Highest half- hourly average","Daily HCl ELV","Monthly mean of  daily averages","Highest daily average",null,null,{"$f":"+A5","v":2024},"mg/Nm3","Monthly mean of half-hourly averages","Highest half- hourly average","Monthly mean of  daily averages","Highest daily average"]
["Jan",60,{"$f":"AVERAGE(L7,L22)","v":5.34},{"$f":"MAX(M7,M22)","v":26},8,{"$f":"AVERAGE(N7,N22)","v":5.34},{"$f":"MAX(O7,O22)","v":7},null,null,"A1","Jan",5.42,26,5.42,7]
["Feb",60,{"$f":"AVERAGE(L8,L23)","v":5.8249999999999993},{"$f":"MAX(M8,M23)","v":80},8,{"$f":"AVERAGE(N8,N23)","v":5.7200000000000006},{"$f":"MAX(O8,O23)","v":8},null,null,null,"Feb",6.06,80,6,8]
["Mar",60,4.7,39,8,4.5250000000000004,7,null,null,null,"Mar",5,19,5.05,7,null,"Whole Installation table A5:G18:"]
["Apr",60,3.59,18,8,3.58,6,null,null,null,"Apr",4.04,18,4.09,6,null,"Mean: for 1/2 hourly and daily periods calculate mean of values across all operational combustion lines for the month"]
["May",60,4.34,18,8,4.2349999999999994,6,null,null,null,"May",4.9400000000000004,18,4.97,6]
["Jun",60,5.18,179,8,5.16,28,null,null,null,"Jun",5.83,179,5.93,28]
["Jul",60,5.49,41,8,5.54,7,null,null,null,"Jul",5.24,27,5.28,7,null,"Maximum: for 1/2 hourly and daily periods use the highest value across all operational combustion lines for the month"]
["Aug",60,5.69,34,8,5.7,9,null,null,null,"Aug",5.23,34,5.2,9]
["Sep",60,4.6950000000000003,33,8,5.21,8,null,null,null,"Sep",4.8899999999999997,17,4.8499999999999996,7]
["Oct",60,4.66,26,8,4.7200000000000006,7,null,null,null,"Oct",4.32,26,4.4400000000000004,6]
["Nov",60,4.43,22,8,4.4550000000000001,7,null,null,null,"Nov",4.38,20,4.3,6]
["Dec",60,4.2249999999999996,25,8,4.125,6,null,null,null,"Dec",4.22,22,4.0599999999999996,5]
[null,null,null,null,null,null,null,null,null,null,"Annual",{"$f":"AVERAGE(L7:L18)","v":4.9641666666666673},{"$f":"MAX(M7:M18)","v":179},{"$f":"AVERAGE(N7:N18)","v":4.9658333333333333},{"$f":"MAX(O7:O18)","v":28}]
[]
[null,null,null,null,null,null,null,null,null,{"$f":"+A5","v":2024},"mg/Nm3","Monthly mean of half-hourly averages","Highest half- hourly average","Monthly mean of  daily averages","Highest daily average"]
[null,null,null,null,null,null,null,null,null,"A2","Jan",5.26,22,5.26,6]
[null,null,null,null,null,null,null,null,null,null,"Feb",5.59,39,5.44,6]
[null,null,null,null,null,null,null,null,null,null,"Mar",4.4000000000000004,39,4,5]
[null,null,null,null,null,null,null,null,null,null,"Apr",3.14,15,3.07,5]
[null,null,null,null,null,null,null,null,null,null,"May",3.74,14,3.5,5]
[null,null,null,null,null,null,null,null,null,null,"Jun",4.53,36,4.3899999999999997,8]
[null,null,null,null,null,null,null,null,null,null,"Jul",5.74,41,5.8,7]
[null,null,null,null,null,null,null,null,null,null,"Aug",6.15,34,6.2,7]
[null,null,null,null,null,null,null,null,null,null,"Sep",4.5,33,5.57,8]
[null,null,null,null,null,null,null,null,null,null,"Oct",5,21,5,7]
[null,null,null,null,null,null,null,null,null,null,"Nov",4.4800000000000004,22,4.6100000000000003,7]
[null,null,null,null,null,null,null,null,null,null,"Dec",4.2300000000000004,25,4.1900000000000004,6]
[null,null,null,null,null,null,null,null,null,null,"Annual",{"$f":"AVERAGE(L22:L33)","v":4.7300000000000004},{"$f":"MAX(M22:M33)","v":41},{"$f":"AVERAGE(N22:N33)","v":4.7525000000000004},{"$f":"MAX(O22:O33)","v":8}]
[]
[null,null,null,null,null,null,null,null,null,{"$f":"+A5","v":2024},"mg/Nm3","Monthly mean of half-hourly averages","Highest half- hourly average","Monthly mean of  daily averages","Highest daily average"]
[null,null,null,null,null,null,null,null,null,"A3","Jan"]
[null,null,null,null,null,null,null,null,null,null,"Feb"]
[null,null,null,null,null,null,null,null,null,null,"Mar"]
[null,null,null,null,null,null,null,null,null,null,"Apr"]
[null,null,null,null,null,null,null,null,null,null,"May"]
[null,null,null,null,null,null,null,null,null,null,"Jun"]
[null,null,null,null,null,null,null,null,null,null,"Jul"]
[null,null,null,null,null,null,null,null,null,null,"Aug"]
[null,null,null,null,null,null,null,null,null,null,"Sep"]
[null,null,null,null,null,null,null,null,null,null,"Oct"]
[null,null,null,null,null,null,null,null,null,null,"Nov"]
["Comments :",null,null,null,null,null,null,null,null,null,"Dec"]
[null,null,null,null,null,null,null,null,null,null,"Annual",{"$f":"AVERAGE(L37:L48)","v":{"$error":"#DIV/0!"}},{"$f":"MAX(M37:M48)","v":0},{"$f":"AVERAGE(N37:N48)","v":{"$error":"#DIV/0!"}},{"$f":"MAX(O37:O48)","v":0}]
[]
[null,null,null,null,null,null,null,null,null,{"$f":"+A5","v":2024},"mg/Nm3","Monthly mean of half-hourly averages","Highest half- hourly average","Monthly mean of  daily averages","Highest daily average"]
[null,null,null,null,null,null,null,null,null,"A4","Jan"]
[null,null,null,null,null,null,null,null,null,null,"Feb"]
[null,null,null,null,null,null,null,null,null,null,"Mar"]
[null,null,null,null,null,null,null,null,null,null,"Apr"]
[null,null,null,null,null,null,null,null,null,null,"May"]
[null,null,null,null,null,null,null,null,null,null,"Jun"]
[null,null,null,null,null,null,null,null,null,null,"Jul"]
[null,null,null,null,null,null,null,null,null,null,"Aug"]
[null,null,null,null,null,null,null,null,null,null,"Sep"]
[null,null,null,null,null,null,null,null,null,null,"Oct"]
[null,null,null,null,null,null,null,null,null,null,"Nov"]
[null,null,null,null,null,null,null,null,null,null,"Dec"]
[null,null,null,null,null,null,null,null,null,null,"Annual",{"$f":"AVERAGE(L52:L63)","v":{"$error":"#DIV/0!"}},{"$f":"MAX(M52:M63)","v":0},{"$f":"AVERAGE(N52:N63)","v":{"$error":"#DIV/0!"}},{"$f":"MAX(O52:O63)","v":0}]
[]
[null,null,null,null,null,null,null,null,null,{"$f":"+A5","v":2024},"mg/Nm3","Monthly mean of half-hourly averages","Highest half- hourly average","Monthly mean of  daily averages","Highest daily average"]
[null,null,null,null,null,null,null,null,null,"A5","Jan"]
[null,null,null,null,null,null,null,null,null,null,"Feb"]
[null,null,null,null,null,null,null,null,null,null,"Mar"]
[null,null,null,null,null,null,null,null,null,null,"Apr"]
[null,null,null,null,null,null,null,null,null,null,"May"]
[null,null,null,null,null,null,null,null,null,null,"Jun"]
[null,null,null,null,null,null,null,null,null,null,"Jul"]
[null,null,null,null,null,null,null,null,null,null,"Aug"]
[null,null,null,null,null,null,null,null,null,null,"Sep"]
[null,null,null,null,null,null,null,null,null,null,"Oct"]
[null,null,null,null,null,null,null,null,null,null,"Nov"]
[null,null,null,null,null,null,null,null,null,null,"Dec"]
[null,null,null,null,null,null,null,null,null,null,"Annual",{"$f":"AVERAGE(L67:L78)","v":{"$error":"#DIV/0!"}},{"$f":"MAX(M67:M78)","v":0},{"$f":"AVERAGE(N67:N78)","v":{"$error":"#DIV/0!"}},{"$f":"MAX(O67:O78)","v":0}]

{"sheet":"SO2","index":16,"n_rows":79,"n_cols":17,"rows_kept":79,"cut":false,"hidden":false,"merged":[[3,16,7,18],[9,16,11,18],[12,16,15,18],[66,9,78,9],[4,1,4,3],[4,4,4,6],[4,9,4,14],[6,9,18,9],[21,9,33,9],[36,9,48,9],[47,0,47,6],[48,0,51,6],[51,9,63,9],[18,4,18,6]]}
[{"$f":"+'Cover Page'!$B$29","v":"Annual Performance Report 2024"},null,null,null,{"$f":"+'Cover Page'!$B$33","v":"Wolverhampton Energy from Waste Facility "}]
[]
["Monitoring of Sulphur dioxide emissions",null,null,"Whole Installation",null,null,"See  Notes in Cell Q3",null,null,{"$f":"+A3","v":"Monitoring of Sulphur dioxide emissions"},null,null,null,"Per Combustion Line",null,null,"Notes:"]
[null,null,null,null,null,null,null,null,null,null,null,null,null,null,null,null,"User to add logic to complete Whole installation, Table A5:G18. From the data in Per Combustion Line, Table J6:O79, subject to No. of lines installed"]
[{"$f":"+'Cover Page'!C39","v":2024},"1/2 Hourly Reference Periods",null,null,"Daily Reference Periods"]
["mg/Nm3","1/2 hourly SO2 ELV","Monthly mean of half-hourly averages","Highest half- hourly average","Daily SO2 ELV","Monthly mean of  daily averages","Highest daily average",null,null,{"$f":"+A5","v":2024},"mg/Nm3","Monthly mean of half-hourly averages","Highest half- hourly average","Monthly mean of  daily averages","Highest daily average"]
["Jan",200,{"$f":"AVERAGE(L7,L22)","v":12.98},{"$f":"MAX(M7,M22)","v":86},40,{"$f":"AVERAGE(N7,N22)","v":12.98},{"$f":"MAX(O7,O22)","v":23},null,null,"A1","Jan",11.19,62,11.19,16]
["Feb",200,{"$f":"AVERAGE(L8,L23)","v":15.265000000000001},{"$f":"MAX(M8,M23)","v":86},40,{"$f":"AVERAGE(N8,N23)","v":15.574999999999999},{"$f":"MAX(O8,O23)","v":25},null,null,null,"Feb",15.06,71,15.13,23]
["Mar",200,15.57,100,40,14.95,24,null,null,null,"Mar",18.440000000000001,100,17.63,24,null,"Whole Installation table A5:G18:"]
["Apr",200,22.884999999999998,173,40,22.75,31,null,null,null,"Apr",22.44,173,22.77,31,null,"Mean: for 1/2 hourly and daily periods calculate mean of values across all operational combustion lines for the month"]
["May",200,20.805,131,40,21.08,33,null,null,null,"May",17.190000000000001,131,17.41,30]
["Jun",200,19.565000000000001,103,40,19.785,27,null,null,null,"Jun",18.100000000000001,89,18.11,24]
["Jul",200,15.965,75,40,15.47,24,null,null,null,"Jul",15.9,75,14.84,22,null,"Maximum: for 1/2 hourly and daily periods use the highest value across all operational combustion lines for the month"]
["Aug",200,18.244999999999997,108,40,18.065000000000001,32,null,null,null,"Aug",19.68,108,19.53,32]
["Sep",200,14.1,71,40,14.07,24,null,null,null,"Sep",14.5,71,15,24]
["Oct",200,17.95,86,40,18.145,25,null,null,null,"Oct",17.57,86,17.96,25]
["Nov",200,15.1,105,40,15.260000000000002,24,null,null,null,"Nov",17.239999999999998,87,17.350000000000001,24]
["Dec",200,15.620000000000001,118,40,15.925000000000001,27,null,null,null,"Dec",16.43,118,17,27]
[null,null,null,null,null,null,null,null,null,null,"Annual",{"$f":"AVERAGE(L7:L18)","v":16.978333333333335},{"$f":"MAX(M7:M18)","v":173},{"$f":"AVERAGE(N7:N18)","v":16.993333333333336},{"$f":"MAX(O7:O18)","v":32}]
[]
[null,null,null,null,null,null,null,null,null,{"$f":"+A5","v":2024},"mg/Nm3","Monthly mean of half-hourly averages","Highest half- hourly average","Monthly mean of  daily averages","Highest daily average"]
[null,null,null,null,null,null,null,null,null,"A2","Jan",14.77,86,14.77,23]
[null,null,null,null,null,null,null,null,null,null,"Feb",15.47,86,16.02,25]
[null,null,null,null,null,null,null,null,null,null,"Mar",12.7,62,12.27,19]
[null,null,null,null,null,null,null,null,null,null,"Apr",23.33,78,22.73,29]
[null,null,null,null,null,null,null,null,null,null,"May",24.42,84,24.75,33]
[null,null,null,null,null,null,null,null,null,null,"Jun",21.03,103,21.46,27]
[null,null,null,null,null,null,null,null,null,null,"Jul",16.03,73,16.100000000000001,24]
[null,null,null,null,null,null,null,null,null,null,"Aug",16.809999999999999,97,16.600000000000001,20]
[null,null,null,null,null,null,null,null,null,null,"Sep",13.7,63,13.14,23]
[null,null,null,null,null,null,null,null,null,null,"Oct",18.329999999999998,69,18.329999999999998,24]
[null,null,null,null,null,null,null,null,null,null,"Nov",12.96,105,13.17,21]
[null,null,null,null,null,null,null,null,null,null,"Dec",14.81,84,14.85,24]
[null,null,null,null,null,null,null,null,null,null,"Annual",{"$f":"AVERAGE(L22:L33)","v":17.029999999999998},{"$f":"MAX(M22:M33)","v":105},{"$f":"AVERAGE(N22:N33)","v":17.01583333333333},{"$f":"MAX(O22:O33)","v":33}]
[]
[null,null,null,null,null,null,null,null,null,{"$f":"+A5","v":2024},"mg/Nm3","Monthly mean of half-hourly averages","Highest half- hourly average","Monthly mean of  daily averages","Highest daily average"]
[null,null,null,null,null,null,null,null,null,"A3","Jan"]
[null,null,null,null,null,null,null,null,null,null,"Feb"]
[null,null,null,null,null,null,null,null,null,null,"Mar"]
[null,null,null,null,null,null,null,null,null,null,"Apr"]
[null,null,null,null,null,null,null,null,null,null,"May"]
[null,null,null,null,null,null,null,null,null,null,"Jun"]
[null,null,null,null,null,null,null,null,null,null,"Jul"]
[null,null,null,null,null,null,null,null,null,null,"Aug"]
[null,null,null,null,null,null,null,null,null,null,"Sep"]
[null,null,null,null,null,null,null,null,null,null,"Oct"]
[null,null,null,null,null,null,null,null,null,null,"Nov"]
["Comments :",null,null,null,null,null,null,null,null,null,"Dec"]
[null,null,null,null,null,null,null,null,null,null,"Annual",{"$f":"AVERAGE(L37:L48)","v":{"$error":"#DIV/0!"}},{"$f":"MAX(M37:M48)","v":0},{"$f":"AVERAGE(N37:N48)","v":{"$error":"#DIV/0!"}},{"$f":"MAX(O37:O48)","v":0}]
[]
[null,null,null,null,null,null,null,null,null,{"$f":"+A5","v":2024},"mg/Nm3","Monthly mean of half-hourly averages","Highest half- hourly average","Monthly mean of  daily averages","Highest daily average"]
[null,null,null,null,null,null,null,null,null,"A4","Jan"]
[null,null,null,null,null,null,null,null,null,null,"Feb"]
[null,null,null,null,null,null,null,null,null,null,"Mar"]
[null,null,null,null,null,null,null,null,null,null,"Apr"]
[null,null,null,null,null,null,null,null,null,null,"May"]
[null,null,null,null,null,null,null,null,null,null,"Jun"]
[null,null,null,null,null,null,null,null,null,null,"Jul"]
[null,null,null,null,null,null,null,null,null,null,"Aug"]
[null,null,null,null,null,null,null,null,null,null,"Sep"]
[null,null,null,null,null,null,null,null,null,null,"Oct"]
[null,null,null,null,null,null,null,null,null,null,"Nov"]
[null,null,null,null,null,null,null,null,null,null,"Dec"]
[null,null,null,null,null,null,null,null,null,null,"Annual",{"$f":"AVERAGE(L52:L63)","v":{"$error":"#DIV/0!"}},{"$f":"MAX(M52:M63)","v":0},{"$f":"AVERAGE(N52:N63)","v":{"$error":"#DIV/0!"}},{"$f":"MAX(O52:O63)","v":0}]
[]
[null,null,null,null,null,null,null,null,null,{"$f":"+A5","v":2024},"mg/Nm3","Monthly mean of half-hourly averages","Highest half- hourly average","Monthly mean of  daily averages","Highest daily average"]
[null,null,null,null,null,null,null,null,null,"A5","Jan"]
[null,null,null,null,null,null,null,null,null,null,"Feb"]
[null,null,null,null,null,null,null,null,null,null,"Mar"]
[null,null,null,null,null,null,null,null,null,null,"Apr"]
[null,null,null,null,null,null,null,null,null,null,"May"]
[null,null,null,null,null,null,null,null,null,null,"Jun"]
[null,null,null,null,null,null,null,null,null,null,"Jul"]
[null,null,null,null,null,null,null,null,null,null,"Aug"]
[null,null,null,null,null,null,null,null,null,null,"Sep"]
[null,null,null,null,null,null,null,null,null,null,"Oct"]
[null,null,null,null,null,null,null,null,null,null,"Nov"]
[null,null,null,null,null,null,null,null,null,null,"Dec"]
[null,null,null,null,null,null,null,null,null,null,"Annual",{"$f":"AVERAGE(L67:L78)","v":{"$error":"#DIV/0!"}},{"$f":"MAX(M67:M78)","v":0},{"$f":"AVERAGE(N67:N78)","v":{"$error":"#DIV/0!"}},{"$f":"MAX(O67:O78)","v":0}]

{"sheet":"NOx","index":17,"n_rows":79,"n_cols":17,"rows_kept":79,"cut":false,"hidden":false,"merged":[[3,16,7,18],[9,16,11,18],[12,16,15,18],[66,9,78,9],[4,1,4,3],[4,4,4,6],[4,9,4,14],[6,9,18,9],[21,9,33,9],[36,9,48,9],[47,0,47,6],[48,0,51,6],[51,9,63,9],[18,4,18,6]]}
[{"$f":"+'Cover Page'!$B$29","v":"Annual Performance Report 2024"},null,null,null,{"$f":"+'Cover Page'!$B$33","v":"Wolverhampton Energy from Waste Facility "}]
[]
["Monitoring of Oxides of Nitrogen emissions",null,null,"Whole Installation",null,null,"See  Notes in Cell Q3",null,null,{"$f":"+A3","v":"Monitoring of Oxides of Nitrogen emissions"},null,null,null,"Per Combustion Line",null,null,"Notes:"]
[null,null,null,null,null,null,null,null,null,null,null,null,null,null,null,null,"User to add logic to complete Whole installation, Table A5:G18. From the data in Per Combustion Line, Table J6:O79, subject to No. of lines installed"]
[{"$f":"+'Cover Page'!C39","v":2024},"1/2 Hourly Reference Periods",null,null,"Daily Reference Periods"]
["mg/Nm3","1/2 hourly NOx ELV","Monthly mean of half-hourly averages","Highest half- hourly average","Daily NOx ELV","Monthly mean of  daily averages","Highest daily average",null,null,{"$f":"+A5","v":2024},"mg/Nm3","Monthly mean of half-hourly averages","Highest half- hourly average","Monthly mean of  daily averages","Highest daily average"]
["Jan",400,{"$f":"AVERAGE(L7,L22)","v":169.95},{"$f":"MAX(M7,M22)","v":249},180,{"$f":"AVERAGE(N7,N22)","v":169.95},{"$f":"MAX(O7,O22)","v":172},null,null,"A1","Jan",169.45,217,169.45,172]
["Feb",400,{"$f":"AVERAGE(L8,L23)","v":169.73500000000001},{"$f":"MAX(M8,M23)","v":317},180,{"$f":"AVERAGE(N8,N23)","v":169.31},{"$f":"MAX(O8,O23)","v":173},null,null,null,"Feb",169.18,281,168.81,172]
["Mar",400,170.69499999999999,333,180,169.83499999999998,173,null,null,null,"Mar",169.64,333,168.94,173,null,"Whole Installation table A5:G18:"]
["Apr",400,172.41000000000003,330,180,171.285,180,null,null,null,"Apr",169.96,313,170.64,173,null,"Mean: for 1/2 hourly and daily periods calculate mean of values across all operational combustion lines for the month"]
["May",400,171.54000000000002,295,180,170.095,181,null,null,null,"May",170.55,228,170.31,172]
["Jun",400,170.67000000000002,271,180,170.80500000000001,178,null,null,null,"Jun",170.57,210,170.5,171]
["Jul",400,170.76499999999999,312,180,170.595,175,null,null,null,"Jul",170.79,312,170.56,173,null,"Maximum: for 1/2 hourly and daily periods use the highest value across all operational combustion lines for the month"]
["Aug",400,167.38,373,180,167.505,176,null,null,null,"Aug",164.13,281,163.97,175]
["Sep",400,168.76499999999999,288,180,170.5,173,null,null,null,"Sep",170.93,288,171,173]
["Oct",400,170.625,299,180,170.3,172,null,null,null,"Oct",170.89,299,170.24,172]
["Nov",400,170.54000000000002,240,180,170.565,172,null,null,null,"Nov",170.56,227,170.61,171]
["Dec",400,170.32499999999999,290,180,170.02999999999997,176,null,null,null,"Dec",170.7,231,170.39,174]
[null,null,null,null,null,null,null,null,null,null,"Annual",{"$f":"AVERAGE(L7:L18)","v":169.77916666666667},{"$f":"MAX(M7:M18)","v":333},{"$f":"AVERAGE(N7:N18)","v":169.61833333333331},{"$f":"MAX(O7:O18)","v":175}]
[]
[null,null,null,null,null,null,null,null,null,{"$f":"+A5","v":2024},"mg/Nm3","Monthly mean of half-hourly averages","Highest half- hourly average","Monthly mean of  daily averages","Highest daily average"]
[null,null,null,null,null,null,null,null,null,"A2","Jan",170.45,249,170.45,172]
[null,null,null,null,null,null,null,null,null,null,"Feb",170.29,317,169.81,173]
[null,null,null,null,null,null,null,null,null,null,"Mar",171.75,269,170.73,173]
[null,null,null,null,null,null,null,null,null,null,"Apr",174.86,330,171.93,180]
[null,null,null,null,null,null,null,null,null,null,"May",172.53,295,169.88,181]
[null,null,null,null,null,null,null,null,null,null,"Jun",170.77,271,171.11,178]
[null,null,null,null,null,null,null,null,null,null,"Jul",170.74,243,170.63,175]
[null,null,null,null,null,null,null,null,null,null,"Aug",170.63,373,171.04,176]
[null,null,null,null,null,null,null,null,null,null,"Sep",166.6,247,170,172]
[null,null,null,null,null,null,null,null,null,null,"Oct",170.36,253,170.36,172]
[null,null,null,null,null,null,null,null,null,null,"Nov",170.52,240,170.52,172]
[null,null,null,null,null,null,null,null,null,null,"Dec",169.95,290,169.67,176]
[null,null,null,null,null,null,null,null,null,null,"Annual",{"$f":"AVERAGE(L22:L33)","v":170.78749999999999},{"$f":"MAX(M22:M33)","v":373},{"$f":"AVERAGE(N22:N33)","v":170.51083333333335},{"$f":"MAX(O22:O33)","v":181}]
[]
[null,null,null,null,null,null,null,null,null,{"$f":"+A5","v":2024},"mg/Nm3","Monthly mean of half-hourly averages","Highest half- hourly average","Monthly mean of  daily averages","Highest daily average"]
[null,null,null,null,null,null,null,null,null,"A3","Jan"]
[null,null,null,null,null,null,null,null,null,null,"Feb"]
[null,null,null,null,null,null,null,null,null,null,"Mar"]
[null,null,null,null,null,null,null,null,null,null,"Apr"]
[null,null,null,null,null,null,null,null,null,null,"May"]
[null,null,null,null,null,null,null,null,null,null,"Jun"]
[null,null,null,null,null,null,null,null,null,null,"Jul"]
[null,null,null,null,null,null,null,null,null,null,"Aug"]
[null,null,null,null,null,null,null,null,null,null,"Sep"]
[null,null,null,null,null,null,null,null,null,null,"Oct"]
[null,null,null,null,null,null,null,null,null,null,"Nov"]
["Comments :",null,null,null,null,null,null,null,null,null,"Dec"]
[null,null,null,null,null,null,null,null,null,null,"Annual",{"$f":"AVERAGE(L37:L48)","v":{"$error":"#DIV/0!"}},{"$f":"MAX(M37:M48)","v":0},{"$f":"AVERAGE(N37:N48)","v":{"$error":"#DIV/0!"}},{"$f":"MAX(O37:O48)","v":0}]
[]
[null,null,null,null,null,null,null,null,null,{"$f":"+A5","v":2024},"mg/Nm3","Monthly mean of half-hourly averages","Highest half- hourly average","Monthly mean of  daily averages","Highest daily average"]
[null,null,null,null,null,null,null,null,null,"A4","Jan"]
[null,null,null,null,null,null,null,null,null,null,"Feb"]
[null,null,null,null,null,null,null,null,null,null,"Mar"]
[null,null,null,null,null,null,null,null,null,null,"Apr"]
[null,null,null,null,null,null,null,null,null,null,"May"]
[null,null,null,null,null,null,null,null,null,null,"Jun"]
[null,null,null,null,null,null,null,null,null,null,"Jul"]
[null,null,null,null,null,null,null,null,null,null,"Aug"]
[null,null,null,null,null,null,null,null,null,null,"Sep"]
[null,null,null,null,null,null,null,null,null,null,"Oct"]
[null,null,null,null,null,null,null,null,null,null,"Nov"]
[null,null,null,null,null,null,null,null,null,null,"Dec"]
[null,null,null,null,null,null,null,null,null,null,"Annual",{"$f":"AVERAGE(L52:L63)","v":{"$error":"#DIV/0!"}},{"$f":"MAX(M52:M63)","v":0},{"$f":"AVERAGE(N52:N63)","v":{"$error":"#DIV/0!"}},{"$f":"MAX(O52:O63)","v":0}]
[]
[null,null,null,null,null,null,null,null,null,{"$f":"+A5","v":2024},"mg/Nm3","Monthly mean of half-hourly averages","Highest half- hourly average","Monthly mean of  daily averages","Highest daily average"]
[null,null,null,null,null,null,null,null,null,"A5","Jan"]
[null,null,null,null,null,null,null,null,null,null,"Feb"]
[null,null,null,null,null,null,null,null,null,null,"Mar"]
[null,null,null,null,null,null,null,null,null,null,"Apr"]
[null,null,null,null,null,null,null,null,null,null,"May"]
[null,null,null,null,null,null,null,null,null,null,"Jun"]
[null,null,null,null,null,null,null,null,null,null,"Jul"]
[null,null,null,null,null,null,null,null,null,null,"Aug"]
[null,null,null,null,null,null,null,null,null,null,"Sep"]
[null,null,null,null,null,null,null,null,null,null,"Oct"]
[null,null,null,null,null,null,null,null,null,null,"Nov"]
[null,null,null,null,null,null,null,null,null,null,"Dec"]
[null,null,null,null,null,null,null,null,null,null,"Annual",{"$f":"AVERAGE(L67:L78)","v":{"$error":"#DIV/0!"}},{"$f":"MAX(M67:M78)","v":0},{"$f":"AVERAGE(N67:N78)","v":{"$error":"#DIV/0!"}},{"$f":"MAX(O67:O78)","v":0}]

{"sheet":"TOC","index":18,"n_rows":79,"n_cols":17,"rows_kept":79,"cut":false,"hidden":false,"merged":[[3,16,7,18],[9,16,11,18],[12,16,15,18],[66,9,78,9],[4,1,4,3],[4,4,4,6],[4,9,4,14],[6,9,18,9],[21,9,33,9],[36,9,48,9],[47,0,47,6],[48,0,51,6],[51,9,63,9]]}
[{"$f":"+'Cover Page'!$B$29","v":"Annual Performance Report 2024"},null,null,null,{"$f":"+'Cover Page'!$B$33","v":"Wolverhampton Energy from Waste Facility "}]
[]
["Monitoring of Total organic carbon emissions",null,null,"Whole Installation",null,null,"See  Notes in Cell Q3",null,null,{"$f":"+A3","v":"Monitoring of Total organic carbon emissions"},null,null,null,"Per Combustion Line",null,null,"Notes:"]
[null,null,null,null,null,null,null,null,null,null,null,null,null,null,null,null,"User to add logic to complete Whole installation, Table A5:G18. From the data in Per Combustion Line, Table J6:O79, subject to No. of lines installed"]
[{"$f":"+'Cover Page'!C39","v":2024},"1/2 Hourly Reference Periods",null,null,"Daily Reference Periods"]
["mg/Nm3","1/2 hourly TOC ELV","Monthly mean of half-hourly averages","Highest half- hourly average","Daily TOC ELV","Monthly mean of  daily averages","Highest daily average",null,null,{"$f":"+A5","v":2024},"mg/Nm3","Monthly mean of half-hourly averages","Highest half- hourly average","Monthly mean of  daily averages","Highest daily average"]
["Jan",20,{"$f":"AVERAGE(L7,L22)","v":0.16},{"$f":"MAX(M7,M22)","v":9},10,{"$f":"AVERAGE(N7,N22)","v":0.16},{"$f":"MAX(O7,O22)","v":1},null,null,"A1","Jan",0.32,1,0.32,1]
["Feb",20,{"$f":"AVERAGE(L8,L23)","v":0.03},{"$f":"MAX(M8,M23)","v":5},10,{"$f":"AVERAGE(N8,N23)","v":0},{"$f":"MAX(O8,O23)","v":0},null,null,null,"Feb",0,1,0,0]
["Mar",20,0.24000000000000002,114,10,0.08,2,null,null,null,"Mar",0.28000000000000003,114,0.16,2,null,"Whole Installation table A5:G18:"]
["Apr",20,0.3,25,10,0.18,1,null,null,null,"Apr",0.36,25,0.36,1,null,"Mean: for 1/2 hourly and daily periods calculate mean of values across all operational combustion lines for the month"]
["May",20,0.23499999999999999,9,10,0.20499999999999999,1,null,null,null,"May",0.42,6,0.41,1]
["Jun",20,0,7,10,0,0,null,null,null,"Jun",0,7,0,0]
["Jul",20,0,5,10,0,0,null,null,null,"Jul",0,5,0,0,null,"Maximum: for 1/2 hourly and daily periods use the highest value across all operational combustion lines for the month"]
["Aug",20,0.08,10,10,6.5000000000000002E-2,1,null,null,null,"Aug",0.16,10,0.13,1]
["Sep",20,0.1,5,10,0,0,null,null,null,"Sep",0,5,0,0]
["Oct",20,0.02,8,10,0.02,1,null,null,null,"Oct",0.04,8,0.04,1]
["Nov",20,0,14,10,0,0,null,null,null,"Nov",0,14,0,0]
["Dec",20,0.19500000000000001,13,10,0.16500000000000001,2,null,null,null,"Dec",0.39,13,0.33,2]
[null,null,null,null,null,null,null,null,null,null,"Annual",{"$f":"AVERAGE(L7:L18)","v":0.16416666666666668},{"$f":"MAX(M7:M18)","v":114},{"$f":"AVERAGE(N7:N18)","v":0.14583333333333334},{"$f":"MAX(O7:O18)","v":2}]
[]
[null,null,null,null,null,null,null,null,null,{"$f":"+A5","v":2024},"mg/Nm3","Monthly mean of half-hourly averages","Highest half- hourly average","Monthly mean of  daily averages","Highest daily average"]
[null,null,null,null,null,null,null,null,null,"A2","Jan",0,9,0,0]
[null,null,null,null,null,null,null,null,null,null,"Feb",0.06,5,0,0]
[null,null,null,null,null,null,null,null,null,null,"Mar",0.2,29,0,0]
[null,null,null,null,null,null,null,null,null,null,"Apr",0.24,6,0,0]
[null,null,null,null,null,null,null,null,null,null,"May",0.05,9,0,0]
[null,null,null,null,null,null,null,null,null,null,"Jun",0,6,0,0]
[null,null,null,null,null,null,null,null,null,null,"Jul",0,5,0,0]
[null,null,null,null,null,null,null,null,null,null,"Aug",0,3,0,0]
[null,null,null,null,null,null,null,null,null,null,"Sep",0.2,4,0,0]
[null,null,null,null,null,null,null,null,null,null,"Oct",0,6,0,0]
[null,null,null,null,null,null,null,null,null,null,"Nov",0,6,0,0]
[null,null,null,null,null,null,null,null,null,null,"Dec",0,11,0,0]
[null,null,null,null,null,null,null,null,null,null,"Annual",{"$f":"AVERAGE(L22:L33)","v":6.25E-2},{"$f":"MAX(M22:M33)","v":29},{"$f":"AVERAGE(N22:N33)","v":0},{"$f":"MAX(O22:O33)","v":0}]
[]
[null,null,null,null,null,null,null,null,null,{"$f":"+A5","v":2024},"mg/Nm3","Monthly mean of half-hourly averages","Highest half- hourly average","Monthly mean of  daily averages","Highest daily average"]
[null,null,null,null,null,null,null,null,null,"A3","Jan"]
[null,null,null,null,null,null,null,null,null,null,"Feb"]
[null,null,null,null,null,null,null,null,null,null,"Mar"]
[null,null,null,null,null,null,null,null,null,null,"Apr"]
[null,null,null,null,null,null,null,null,null,null,"May"]
[null,null,null,null,null,null,null,null,null,null,"Jun"]
[null,null,null,null,null,null,null,null,null,null,"Jul"]
[null,null,null,null,null,null,null,null,null,null,"Aug"]
[null,null,null,null,null,null,null,null,null,null,"Sep"]
[null,null,null,null,null,null,null,null,null,null,"Oct"]
[null,null,null,null,null,null,null,null,null,null,"Nov"]
["Comments :",null,null,null,null,null,null,null,null,null,"Dec"]
[null,null,null,null,null,null,null,null,null,null,"Annual",{"$f":"AVERAGE(L37:L48)","v":{"$error":"#DIV/0!"}},{"$f":"MAX(M37:M48)","v":0},{"$f":"AVERAGE(N37:N48)","v":{"$error":"#DIV/0!"}},{"$f":"MAX(O37:O48)","v":0}]
[]
[null,null,null,null,null,null,null,null,null,{"$f":"+A5","v":2024},"mg/Nm3","Monthly mean of half-hourly averages","Highest half- hourly average","Monthly mean of  daily averages","Highest daily average"]
[null,null,null,null,null,null,null,null,null,"A4","Jan"]
[null,null,null,null,null,null,null,null,null,null,"Feb"]
[null,null,null,null,null,null,null,null,null,null,"Mar"]
[null,null,null,null,null,null,null,null,null,null,"Apr"]
[null,null,null,null,null,null,null,null,null,null,"May"]
[null,null,null,null,null,null,null,null,null,null,"Jun"]
[null,null,null,null,null,null,null,null,null,null,"Jul"]
[null,null,null,null,null,null,null,null,null,null,"Aug"]
[null,null,null,null,null,null,null,null,null,null,"Sep"]
[null,null,null,null,null,null,null,null,null,null,"Oct"]
[null,null,null,null,null,null,null,null,null,null,"Nov"]
[null,null,null,null,null,null,null,null,null,null,"Dec"]
[null,null,null,null,null,null,null,null,null,null,"Annual",{"$f":"AVERAGE(L52:L63)","v":{"$error":"#DIV/0!"}},{"$f":"MAX(M52:M63)","v":0},{"$f":"AVERAGE(N52:N63)","v":{"$error":"#DIV/0!"}},{"$f":"MAX(O52:O63)","v":0}]
[]
[null,null,null,null,null,null,null,null,null,{"$f":"+A5","v":2024},"mg/Nm3","Monthly mean of half-hourly averages","Highest half- hourly average","Monthly mean of  daily averages","Highest daily average"]
[null,null,null,null,null,null,null,null,null,"A5","Jan"]
[null,null,null,null,null,null,null,null,null,null,"Feb"]
[null,null,null,null,null,null,null,null,null,null,"Mar"]
[null,null,null,null,null,null,null,null,null,null,"Apr"]
[null,null,null,null,null,null,null,null,null,null,"May"]
[null,null,null,null,null,null,null,null,null,null,"Jun"]
[null,null,null,null,null,null,null,null,null,null,"Jul"]
[null,null,null,null,null,null,null,null,null,null,"Aug"]
[null,null,null,null,null,null,null,null,null,null,"Sep"]
[null,null,null,null,null,null,null,null,null,null,"Oct"]
[null,null,null,null,null,null,null,null,null,null,"Nov"]
[null,null,null,null,null,null,null,null,null,null,"Dec"]
[null,null,null,null,null,null,null,null,null,null,"Annual",{"$f":"AVERAGE(L67:L78)","v":{"$error":"#DIV/0!"}},{"$f":"MAX(M67:M78)","v":0},{"$f":"AVERAGE(N67:N78)","v":{"$error":"#DIV/0!"}},{"$f":"MAX(O67:O78)","v":0}]

{"sheet":"Particulates","index":19,"n_rows":79,"n_cols":17,"rows_kept":79,"cut":false,"hidden":false,"merged":[[4,16,8,18],[10,16,12,18],[13,16,16,18],[66,9,78,9],[4,1,4,3],[4,4,4,6],[4,9,4,14],[6,9,18,9],[21,9,33,9],[36,9,48,9],[47,0,47,6],[48,0,51,6],[51,9,63,9],[18,4,18,6]]}
[{"$f":"+'Cover Page'!$B$29","v":"Annual Performance Report 2024"},null,null,null,{"$f":"+'Cover Page'!$B$33","v":"Wolverhampton Energy from Waste Facility "}]
[]
["Monitoring of Particulate matter emissions",null,null,"Whole Installation",null,null,"See  Notes in Cell Q3",null,null,{"$f":"+A3","v":"Monitoring of Particulate matter emissions"},null,null,null,"Per Combustion Line",null,null,"Notes:"]
[]
[{"$f":"+'Cover Page'!C39","v":2024},"1/2 Hourly Reference Periods",null,null,"Daily Reference Periods",null,null,null,null,null,null,null,null,null,null,null,"User to add logic to complete Whole installation, Table A5:G18. From the data in Per Combustion Line, Table J6:O79, subject to No. of lines installed"]
["mg/Nm3","1/2 hourly PM ELV","Monthly mean of half-hourly averages","Highest half- hourly average","Daily PM ELV","Monthly mean of  daily averages","Highest daily average",null,null,{"$f":"+A5","v":2024},"mg/Nm3","Monthly mean of half-hourly averages","Highest half- hourly average","Monthly mean of  daily averages","Highest daily average"]
["Jan",30,{"$f":"AVERAGE(L7:L18)","v":0.66666666666666663},{"$f":"MAX(M7,M22)","v":3},5,{"$f":"AVERAGE(N7,N22)","v":0.56499999999999995},{"$f":"MAX(O7,O22)","v":1},null,null,"A1","Jan",0.13,3,0.13,1]
["Feb",30,{"$f":"AVERAGE(L8:L19)","v":0.71138888888888896},{"$f":"MAX(M8,M23)","v":2},5,{"$f":"AVERAGE(N8,N23)","v":0.255},{"$f":"MAX(O8,O23)","v":1},null,null,null,"Feb",0.35,1,0.38,1]
["Mar",30,0.74424242424242415,5,5,0.41500000000000004,1,null,null,null,"Mar",0.52,5,0.37,1]
["Apr",30,0.76666666666666661,11,5,0.54499999999999993,1,null,null,null,"Apr",0.84,11,0.82,1,null,"Whole Installation table A5:G18:"]
["May",30,0.78266666666666673,5,5,0.5,1,null,null,null,"May",0.71,5,0.69,1,null,"Mean: for 1/2 hourly and daily periods calculate mean of values across all operational combustion lines for the month"]
["Jun",30,0.72366666666666668,2,5,0.34,1,null,null,null,"Jun",0.63,2,0.68,1]
["Jul",30,0.70566666666666678,2,5,0.46,1,null,null,null,"Jul",0.9,2,0.92,1]
["Aug",30,0.64866666666666661,9,5,0.55000000000000004,2,null,null,null,"Aug",1.1299999999999999,9,1.1000000000000001,2,null,"Maximum: for 1/2 hourly and daily periods use the highest value across all operational combustion lines for the month"]
["Sep",30,0.56766666666666676,8,5,0.88000000000000012,2,null,null,null,"Sep",1.64,8,1.62,2]
["Oct",30,0.40366666666666673,89,5,0.16,1,null,null,null,"Oct",0.46,89,0.12,1]
["Nov",30,0.35766666666666669,24,5,0.04,1,null,null,null,"Nov",0.08,24,0.04,1]
["Dec",30,0.35366666666666668,31,5,0.36,2,null,null,null,"Dec",0.61,31,0.61,2]
[null,null,null,null,null,null,null,null,null,null,"Annual",{"$f":"AVERAGE(L7:L18)","v":0.66666666666666663},{"$f":"MAX(M7:M18)","v":89},{"$f":"AVERAGE(N7:N18)","v":0.62333333333333341},{"$f":"MAX(O7:O18)","v":2}]
[]
[null,null,null,null,null,null,null,null,null,{"$f":"+A5","v":2024},"mg/Nm3","Monthly mean of half-hourly averages","Highest half- hourly average","Monthly mean of  daily averages","Highest daily average"]
[null,null,null,null,null,null,null,null,null,"A2","Jan",1,1,1,1]
[null,null,null,null,null,null,null,null,null,null,"Feb",0.12,2,0.13,1]
[null,null,null,null,null,null,null,null,null,null,"Mar",0.45,1,0.46,1]
[null,null,null,null,null,null,null,null,null,null,"Apr",0.33,1,0.27,1]
[null,null,null,null,null,null,null,null,null,null,"May",0.32,4,0.31,1]
[null,null,null,null,null,null,null,null,null,null,"Jun",0,1,0,0]
[null,null,null,null,null,null,null,null,null,null,"Jul",0,1,0,0]
[null,null,null,null,null,null,null,null,null,null,"Aug",0.04,1,0,0]
[null,null,null,null,null,null,null,null,null,null,"Sep",0.3,1,0.14000000000000001,1]
[null,null,null,null,null,null,null,null,null,null,"Oct",0.2,12,0.2,1]
[null,null,null,null,null,null,null,null,null,null,"Nov",0.08,1,0.04,1]
[null,null,null,null,null,null,null,null,null,null,"Dec",0.1,9,0.11,1]
[null,null,null,null,null,null,null,null,null,null,"Annual",{"$f":"AVERAGE(L22:L33)","v":0.24500000000000002},{"$f":"MAX(M22:M33)","v":12},{"$f":"AVERAGE(N22:N33)","v":0.22166666666666668},{"$f":"MAX(O22:O33)","v":1}]
[]
[null,null,null,null,null,null,null,null,null,{"$f":"+A5","v":2024},"mg/Nm3","Monthly mean of half-hourly averages","Highest half- hourly average","Monthly mean of  daily averages","Highest daily average"]
[null,null,null,null,null,null,null,null,null,"A3","Jan"]
[null,null,null,null,null,null,null,null,null,null,"Feb"]
[null,null,null,null,null,null,null,null,null,null,"Mar"]
[null,null,null,null,null,null,null,null,null,null,"Apr"]
[null,null,null,null,null,null,null,null,null,null,"May"]
[null,null,null,null,null,null,null,null,null,null,"Jun"]
[null,null,null,null,null,null,null,null,null,null,"Jul"]
[null,null,null,null,null,null,null,null,null,null,"Aug"]
[null,null,null,null,null,null,null,null,null,null,"Sep"]
[null,null,null,null,null,null,null,null,null,null,"Oct"]
[null,null,null,null,null,null,null,null,null,null,"Nov"]
["Comments :",null,null,null,null,null,null,null,null,null,"Dec"]
[null,null,null,null,null,null,null,null,null,null,"Annual",{"$f":"AVERAGE(L37:L48)","v":{"$error":"#DIV/0!"}},{"$f":"MAX(M37:M48)","v":0},{"$f":"AVERAGE(N37:N48)","v":{"$error":"#DIV/0!"}},{"$f":"MAX(O37:O48)","v":0}]
[]
[null,null,null,null,null,null,null,null,null,{"$f":"+A5","v":2024},"mg/Nm3","Monthly mean of half-hourly averages","Highest half- hourly average","Monthly mean of  daily averages","Highest daily average"]
[null,null,null,null,null,null,null,null,null,"A4","Jan"]
[null,null,null,null,null,null,null,null,null,null,"Feb"]
[null,null,null,null,null,null,null,null,null,null,"Mar"]
[null,null,null,null,null,null,null,null,null,null,"Apr"]
[null,null,null,null,null,null,null,null,null,null,"May"]
[null,null,null,null,null,null,null,null,null,null,"Jun"]
[null,null,null,null,null,null,null,null,null,null,"Jul"]
[null,null,null,null,null,null,null,null,null,null,"Aug"]
[null,null,null,null,null,null,null,null,null,null,"Sep"]
[null,null,null,null,null,null,null,null,null,null,"Oct"]
[null,null,null,null,null,null,null,null,null,null,"Nov"]
[null,null,null,null,null,null,null,null,null,null,"Dec"]
[null,null,null,null,null,null,null,null,null,null,"Annual",{"$f":"AVERAGE(L52:L63)","v":{"$error":"#DIV/0!"}},{"$f":"MAX(M52:M63)","v":0},{"$f":"AVERAGE(N52:N63)","v":{"$error":"#DIV/0!"}},{"$f":"MAX(O52:O63)","v":0}]
[]
[null,null,null,null,null,null,null,null,null,{"$f":"+A5","v":2024},"mg/Nm3","Monthly mean of half-hourly averages","Highest half- hourly average","Monthly mean of  daily averages","Highest daily average"]
[null,null,null,null,null,null,null,null,null,"A5","Jan"]
[null,null,null,null,null,null,null,null,null,null,"Feb"]
[null,null,null,null,null,null,null,null,null,null,"Mar"]
[null,null,null,null,null,null,null,null,null,null,"Apr"]
[null,null,null,null,null,null,null,null,null,null,"May"]
[null,null,null,null,null,null,null,null,null,null,"Jun"]
[null,null,null,null,null,null,null,null,null,null,"Jul"]
[null,null,null,null,null,null,null,null,null,null,"Aug"]
[null,null,null,null,null,null,null,null,null,null,"Sep"]
[null,null,null,null,null,null,null,null,null,null,"Oct"]
[null,null,null,null,null,null,null,null,null,null,"Nov"]
[null,null,null,null,null,null,null,null,null,null,"Dec"]
[null,null,null,null,null,null,null,null,null,null,"Annual",{"$f":"AVERAGE(L67:L78)","v":{"$error":"#DIV/0!"}},{"$f":"MAX(M67:M78)","v":0},{"$f":"AVERAGE(N67:N78)","v":{"$error":"#DIV/0!"}},{"$f":"MAX(O67:O78)","v":0}]

{"sheet":"CO 0.5 hourly","index":20,"n_rows":82,"n_cols":17,"rows_kept":82,"cut":false,"hidden":false,"merged":[[4,0,5,6],[6,16,10,18],[12,16,14,18],[15,16,18,18],[69,9,81,9],[7,1,7,3],[7,4,7,6],[7,9,7,14],[9,9,21,9],[24,9,36,9],[39,9,51,9],[50,0,50,6],[51,0,54,6],[54,9,66,9]]}
[{"$f":"+'Cover Page'!$B$29","v":"Annual Performance Report 2024"},null,null,null,{"$f":"+'Cover Page'!$B$33","v":"Wolverhampton Energy from Waste Facility "},null,"NA"]
[]
["Monitoring of Carbon Monoxide (half hourly)",null,null,"Whole Installation",null,null,"See  Notes in Cell Q3",null,null,{"$f":"+A3","v":"Monitoring of Carbon Monoxide (half hourly)"},null,null,null,"Per Combustion Line",null,null,"Notes:"]
[]
["Please complete this tab for your plant if you have 1/2 hourly CO ELVs; otherwise, leave it blank and complete the CO 95% 10 min tab"]
[]
[null,null,null,null,null,null,null,null,null,null,null,null,null,null,null,null,"User to add logic to complete Whole installation, Table A5:G18. From the data in Per Combustion Line, Table J6:O79, subject to No. of lines installed"]
[{"$f":"+'Cover Page'!C39","v":2024},"1/2 Hourly Reference Periods",null,null,"Daily Reference Periods"]
["mg/Nm3","1/2 hourly CO ELV","Monthly mean of half-hourly averages","Highest half- hourly average","Daily CO ELV","Monthly mean of  daily averages","Highest daily average",null,null,{"$f":"+A8","v":2024},"mg/Nm3","Monthly mean of half-hourly averages","Highest half- hourly average","Monthly mean of  daily averages","Highest daily average"]
["Jan",100,null,null,50,null,null,null,null,"A1","Jan"]
["Feb",{"$f":"+B10","v":100},null,null,{"$f":"+E10","v":50},null,null,null,null,null,"Feb"]
["Mar",{"$f":"+B11","v":100},null,null,{"$f":"+E11","v":50},null,null,null,null,null,"Mar",null,null,null,null,null,"Whole Installation table A5:G18:"]
["Apr",100,null,null,50,null,null,null,null,null,"Apr",null,null,null,null,null,"Mean: for 1/2 hourly and daily periods calculate mean of values across all operational combustion lines for the month"]
["May",100,null,null,50,null,null,null,null,null,"May"]
["Jun",100,null,null,50,null,null,null,null,null,"Jun"]
["Jul",100,null,null,50,null,null,null,null,null,"Jul",null,null,null,null,null,"Maximum: for 1/2 hourly and daily periods use the highest value across all operational combustion lines for the month"]
["Aug",100,null,null,50,null,null,null,null,null,"Aug"]
["Sep",100,null,null,50,null,null,null,null,null,"Sep"]
["Oct",100,null,null,50,null,null,null,null,null,"Oct"]
["Nov",100,null,null,50,null,null,null,null,null,"Nov"]
["Dec",100,null,null,50,null,null,null,null,null,"Dec"]
[null,null,null,null,null,null,null,null,null,null,"Annual",{"$f":"AVERAGE(L10:L21)","v":{"$error":"#DIV/0!"}},{"$f":"MAX(M10:M21)","v":0},{"$f":"AVERAGE(N10:N21)","v":{"$error":"#DIV/0!"}},{"$f":"MAX(O10:O21)","v":0}]
[]
[null,null,null,null,null,null,null,null,null,{"$f":"+A8","v":2024},"mg/Nm3","Monthly mean of half-hourly averages","Highest half- hourly average","Monthly mean of  daily averages","Highest daily average"]
[null,null,null,null,null,null,null,null,null,"A2","Jan"]
[null,null,null,null,null,null,null,null,null,null,"Feb"]
[null,null,null,null,null,null,null,null,null,null,"Mar"]
[null,null,null,null,null,null,null,null,null,null,"Apr"]
[null,null,null,null,null,null,null,null,null,null,"May"]
[null,null,null,null,null,null,null,null,null,null,"Jun"]
[null,null,null,null,null,null,null,null,null,null,"Jul"]
[null,null,null,null,null,null,null,null,null,null,"Aug"]
[null,null,null,null,null,null,null,null,null,null,"Sep"]
[null,null,null,null,null,null,null,null,null,null,"Oct"]
[null,null,null,null,null,null,null,null,null,null,"Nov"]
[null,null,null,null,null,null,null,null,null,null,"Dec"]
[null,null,null,null,null,null,null,null,null,null,"Annual",{"$f":"AVERAGE(L25:L36)","v":{"$error":"#DIV/0!"}},{"$f":"MAX(M25:M36)","v":0},{"$f":"AVERAGE(N25:N36)","v":{"$error":"#DIV/0!"}},{"$f":"MAX(O25:O36)","v":0}]
[]
[null,null,null,null,null,null,null,null,null,{"$f":"+A8","v":2024},"mg/Nm3","Monthly mean of half-hourly averages","Highest half- hourly average","Monthly mean of  daily averages","Highest daily average"]
[null,null,null,null,null,null,null,null,null,"A3","Jan"]
[null,null,null,null,null,null,null,null,null,null,"Feb"]
[null,null,null,null,null,null,null,null,null,null,"Mar"]
[null,null,null,null,null,null,null,null,null,null,"Apr"]
[null,null,null,null,null,null,null,null,null,null,"May"]
[null,null,null,null,null,null,null,null,null,null,"Jun"]
[null,null,null,null,null,null,null,null,null,null,"Jul"]
[null,null,null,null,null,null,null,null,null,null,"Aug"]
[null,null,null,null,null,null,null,null,null,null,"Sep"]
[null,null,null,null,null,null,null,null,null,null,"Oct"]
[null,null,null,null,null,null,null,null,null,null,"Nov"]
["Comments :",null,null,null,null,null,null,null,null,null,"Dec"]
[null,null,null,null,null,null,null,null,null,null,"Annual",{"$f":"AVERAGE(L40:L51)","v":{"$error":"#DIV/0!"}},{"$f":"MAX(M40:M51)","v":0},{"$f":"AVERAGE(N40:N51)","v":{"$error":"#DIV/0!"}},{"$f":"MAX(O40:O51)","v":0}]
[]
[null,null,null,null,null,null,null,null,null,{"$f":"+A8","v":2024},"mg/Nm3","Monthly mean of half-hourly averages","Highest half- hourly average","Monthly mean of  daily averages","Highest daily average"]
[null,null,null,null,null,null,null,null,null,"A4","Jan"]
[null,null,null,null,null,null,null,null,null,null,"Feb"]
[null,null,null,null,null,null,null,null,null,null,"Mar"]
[null,null,null,null,null,null,null,null,null,null,"Apr"]
[null,null,null,null,null,null,null,null,null,null,"May"]
[null,null,null,null,null,null,null,null,null,null,"Jun"]
[null,null,null,null,null,null,null,null,null,null,"Jul"]
[null,null,null,null,null,null,null,null,null,null,"Aug"]
[null,null,null,null,null,null,null,null,null,null,"Sep"]
[null,null,null,null,null,null,null,null,null,null,"Oct"]
[null,null,null,null,null,null,null,null,null,null,"Nov"]
[null,null,null,null,null,null,null,null,null,null,"Dec"]
[null,null,null,null,null,null,null,null,null,null,"Annual",{"$f":"AVERAGE(L55:L66)","v":{"$error":"#DIV/0!"}},{"$f":"MAX(M55:M66)","v":0},{"$f":"AVERAGE(N55:N66)","v":{"$error":"#DIV/0!"}},{"$f":"MAX(O55:O66)","v":0}]
[]
[null,null,null,null,null,null,null,null,null,{"$f":"+A8","v":2024},"mg/Nm3","Monthly mean of half-hourly averages","Highest half- hourly average","Monthly mean of  daily averages","Highest daily average"]
[null,null,null,null,null,null,null,null,null,"A5","Jan"]
[null,null,null,null,null,null,null,null,null,null,"Feb"]
[null,null,null,null,null,null,null,null,null,null,"Mar"]
[null,null,null,null,null,null,null,null,null,null,"Apr"]
[null,null,null,null,null,null,null,null,null,null,"May"]
[null,null,null,null,null,null,null,null,null,null,"Jun"]
[null,null,null,null,null,null,null,null,null,null,"Jul"]
[null,null,null,null,null,null,null,null,null,null,"Aug"]
[null,null,null,null,null,null,null,null,null,null,"Sep"]
[null,null,null,null,null,null,null,null,null,null,"Oct"]
[null,null,null,null,null,null,null,null,null,null,"Nov"]
[null,null,null,null,null,null,null,null,null,null,"Dec"]
[null,null,null,null,null,null,null,null,null,null,"Annual",{"$f":"AVERAGE(L70:L81)","v":{"$error":"#DIV/0!"}},{"$f":"MAX(M70:M81)","v":0},{"$f":"AVERAGE(N70:N81)","v":{"$error":"#DIV/0!"}},{"$f":"MAX(O70:O81)","v":0}]

{"sheet":"CO 95% 10 min","index":21,"n_rows":82,"n_cols":19,"rows_kept":82,"cut":false,"hidden":false,"merged":[[4,0,5,7],[6,18,10,20],[12,18,14,20],[15,18,18,20],[69,10,81,10],[7,1,7,4],[7,5,7,7],[7,10,7,16],[9,10,21,10],[24,10,36,10],[39,10,51,10],[50,0,50,7],[51,0,54,7],[54,10,66,10]]}
[{"$f":"+'Cover Page'!$B$29","v":"Annual Performance Report 2024"},null,null,null,{"$f":"+'Cover Page'!$B$33","v":"Wolverhampton Energy from Waste Facility "}]
[]
["Monitoring of Carbon Monoxide (10-minute avg)",null,null,null,"Whole Installation",null,null,"See  Notes in Cell S3",null,{"$f":"+A3","v":"Monitoring of Carbon Monoxide (10-minute avg)"},null,null,null,null,"Per Combustion Line",null,"Notes:",null,"Notes:"]
[]
["Please complete this tab for your plant if you have 10-minute average CO ELVs; otherwise, leave it blank and complete the CO 0.5 hourly tab"]
[]
[null,null,null,null,null,null,null,null,null,null,null,null,null,null,null,null,null,null,"User to add logic to complete Whole installation, Table A5:H18. From the data in Per Combustion Line, Table K6:Q79, subject to No. of lines installed"]
[{"$f":"+'Cover Page'!C39","v":2024},"10-minute Reference Periods",null,null,null,"Daily Reference Periods"]
["mg/Nm3","95%ile 10-min avg CO ELV","Highest daily 95%ile 10-min average","Monthly mean of 10-min averages","Highest 10-min average","Daily CO ELV","Monthly mean of  daily averages","Highest daily average",null,null,{"$f":"+A8","v":2024},"mg/Nm3","Highest daily 95%ile 10-min average","Monthly mean of 10-min averages","Highest 10-min average","Monthly mean of  daily averages","Highest daily average"]
["Jan",150,{"$f":"MAX(M10,M25)","v":18},{"$f":"AVERAGE(N10,N25)","v":3.5950000000000002},{"$f":"MAX(O10,O25)","v":10},50,{"$f":"AVERAGE(P10,P25)","v":3.5950000000000002},{"$f":"MAX(Q10,Q25)","v":10},null,null,"A1","Jan",18,5.45,10,5.45,10]
["Feb",{"$f":"+B10","v":150},{"$f":"MAX(M11,M26)","v":54},{"$f":"AVERAGE(N11,N26)","v":6.3550000000000004},{"$f":"MAX(O11,O26)","v":54},{"$f":"+F10","v":50},{"$f":"AVERAGE(P11,P26)","v":6.53},{"$f":"MAX(Q11,Q26)","v":23},null,null,null,"Feb",22,10,53,10.25,23]
["Mar",{"$f":"+B11","v":150},42,7.33,42,{"$f":"+F11","v":50},7.7349999999999994,31,null,null,null,"Mar",42,7.76,42,8,31,null,"Whole Installation table A5:H18:"]
["Apr",150,32,2.83,17,50,2.81,17,null,null,null,"Apr",26,3.8,17,4.09,17,null,"Mean: for 10-min and daily periods use average of all operational combustion lines."]
["May",150,89,1,25,50,2.1749999999999998,25,null,null,null,"May",87,0,8,0.97,8]
["Jun",150,54,2.0499999999999998,18,50,1.855,18,null,null,null,"Jun",54,1,18,1.07,18]
["Jul",150,115,4.5,1480,50,4.0299999999999994,19,null,null,null,"Jul",115,3,1480,1.96,7,null,"Maximum: for 10-min and daily periods use the highest of all operational combustion lines in any month."]
["Aug",150,27,2,344,50,2.54,11,null,null,null,"Aug",27,0,344,0.6,6]
["Sep",150,47,6.5,1359,50,4.45,16,null,null,null,"Sep",33,2,374,2.33,11]
["Oct",150,233,5.5,879,50,4.6749999999999998,25,null,null,null,"Oct",233,5,879,3.52,25]
["Nov",150,38,4.5,332,50,4.6500000000000004,11,null,null,null,"Nov",38,4,332,4.3,11]
["Dec",150,57,5,446,50,5.05,13,null,null,null,"Dec",57,4,446,3.83,11]
[null,null,null,null,null,null,null,null,null,null,null,"Annual",{"$f":"MAX(M10:M21)","v":233},{"$f":"AVERAGE(N10:N21)","v":3.8341666666666669},{"$f":"MAX(O10:O21)","v":1480},{"$f":"AVERAGE(P10:P21)","v":3.8641666666666663},{"$f":"MAX(Q10:Q21)","v":31}]
[]
[null,null,null,null,null,null,null,null,null,null,{"$f":"+A8","v":2024},"mg/Nm3","Highest daily 95%ile 10-min average","Monthly mean of 10-min averages","Highest 10-min average","Monthly mean of  daily averages","Highest daily average"]
[null,null,null,null,null,null,null,null,null,null,"A2","Jan",13,1.74,6,1.74,6]
[null,null,null,null,null,null,null,null,null,null,null,"Feb",54,2.71,54,2.81,11]
[null,null,null,null,null,null,null,null,null,null,null,"Mar",21,6.9,21,7.47,19]
[null,null,null,null,null,null,null,null,null,null,null,"Apr",32,1.86,7,1.53,5]
[null,null,null,null,null,null,null,null,null,null,null,"May",89,2,25,3.38,25]
[null,null,null,null,null,null,null,null,null,null,null,"Jun",38,3.1,14,2.64,8]
[null,null,null,null,null,null,null,null,null,null,null,"Jul",30,6,657,6.1,19]
[null,null,null,null,null,null,null,null,null,null,null,"Aug",17,4,246,4.4800000000000004,11]
[null,null,null,null,null,null,null,null,null,null,null,"Sep",47,11,1359,6.57,16]
[null,null,null,null,null,null,null,null,null,null,null,"Oct",23,6,685,5.83,12]
[null,null,null,null,null,null,null,null,null,null,null,"Nov",29,5,289,5,10]
[null,null,null,null,null,null,null,null,null,null,null,"Dec",36,6,428,6.27,13]
[null,null,null,null,null,null,null,null,null,null,null,"Annual",{"$f":"MAX(M25:M36)","v":89},{"$f":"AVERAGE(N25:N36)","v":4.6924999999999999},{"$f":"MAX(O25:O36)","v":1359},{"$f":"AVERAGE(P25:P36)","v":4.4849999999999994},{"$f":"MAX(Q25:Q36)","v":25}]
[]
[null,null,null,null,null,null,null,null,null,null,{"$f":"+A8","v":2024},"mg/Nm3","Highest daily 95%ile 10-min average","Monthly mean of 10-min averages","Highest 10-min average","Monthly mean of  daily averages","Highest daily average"]
[null,null,null,null,null,null,null,null,null,null,"A3","Jan"]
[null,null,null,null,null,null,null,null,null,null,null,"Feb"]
[null,null,null,null,null,null,null,null,null,null,null,"Mar"]
[null,null,null,null,null,null,null,null,null,null,null,"Apr"]
[null,null,null,null,null,null,null,null,null,null,null,"May"]
[null,null,null,null,null,null,null,null,null,null,null,"Jun"]
[null,null,null,null,null,null,null,null,null,null,null,"Jul"]
[null,null,null,null,null,null,null,null,null,null,null,"Aug"]
[null,null,null,null,null,null,null,null,null,null,null,"Sep"]
[null,null,null,null,null,null,null,null,null,null,null,"Oct"]
[null,null,null,null,null,null,null,null,null,null,null,"Nov"]
["Comments :",null,null,null,null,null,null,null,null,null,null,"Dec"]
["Environment Agency explanatory note: The 10-minute average ELV is based on the “95th percentile”. In this case this means that 95% of the 10 minute averages in the relevant 24-hour period (i.e. 137) must be below 150 mg/Nm3, and 5% (i.e. 7) are allowed to be any value above 150 mg/Nm3. Whilst we expect operators to minimise CO emissions at all times, it is perfectly acceptable for the value of the maximum 10-minute average to be above 150 mg/Nm3, provided the 95th percentile ELV has been met for that period. ",null,null,null,null,null,null,null,null,null,null,"Annual",{"$f":"AVERAGE(M40:M51)","v":{"$error":"#DIV/0!"}},null,{"$f":"MAX(O40:O51)","v":0},{"$f":"AVERAGE(P40:P51)","v":{"$error":"#DIV/0!"}},{"$f":"MAX(Q40:Q51)","v":0}]
[]
[null,null,null,null,null,null,null,null,null,null,{"$f":"+A8","v":2024},"mg/Nm3","Highest daily 95%ile 10-min average","Monthly mean of 10-min averages","Highest 10-min average","Monthly mean of  daily averages","Highest daily average"]
[null,null,null,null,null,null,null,null,null,null,"A4","Jan"]
[null,null,null,null,null,null,null,null,null,null,null,"Feb"]
[null,null,null,null,null,null,null,null,null,null,null,"Mar"]
[null,null,null,null,null,null,null,null,null,null,null,"Apr"]
[null,null,null,null,null,null,null,null,null,null,null,"May"]
[null,null,null,null,null,null,null,null,null,null,null,"Jun"]
[null,null,null,null,null,null,null,null,null,null,null,"Jul"]
[null,null,null,null,null,null,null,null,null,null,null,"Aug"]
[null,null,null,null,null,null,null,null,null,null,null,"Sep"]
[null,null,null,null,null,null,null,null,null,null,null,"Oct"]
[null,null,null,null,null,null,null,null,null,null,null,"Nov"]
[null,null,null,null,null,null,null,null,null,null,null,"Dec"]
[null,null,null,null,null,null,null,null,null,null,null,"Annual",{"$f":"AVERAGE(M55:M66)","v":{"$error":"#DIV/0!"}},null,{"$f":"MAX(O55:O66)","v":0},{"$f":"AVERAGE(P55:P66)","v":{"$error":"#DIV/0!"}},{"$f":"MAX(Q55:Q66)","v":0}]
[]
[null,null,null,null,null,null,null,null,null,null,{"$f":"+A8","v":2024},"mg/Nm3","95%ile 10-min avg maximum","Monthly CO 10-min avg mean","10-min avg maximum","Monthly daily mean","Monthly daily maximum"]
[null,null,null,null,null,null,null,null,null,null,"A5","Jan"]
[null,null,null,null,null,null,null,null,null,null,null,"Feb"]
[null,null,null,null,null,null,null,null,null,null,null,"Mar"]
[null,null,null,null,null,null,null,null,null,null,null,"Apr"]
[null,null,null,null,null,null,null,null,null,null,null,"May"]
[null,null,null,null,null,null,null,null,null,null,null,"Jun"]
[null,null,null,null,null,null,null,null,null,null,null,"Jul"]
[null,null,null,null,null,null,null,null,null,null,null,"Aug"]
[null,null,null,null,null,null,null,null,null,null,null,"Sep"]
[null,null,null,null,null,null,null,null,null,null,null,"Oct"]
[null,null,null,null,null,null,null,null,null,null,null,"Nov"]
[null,null,null,null,null,null,null,null,null,null,null,"Dec"]
[null,null,null,null,null,null,null,null,null,null,null,"Annual",{"$f":"AVERAGE(M70:M81)","v":{"$error":"#DIV/0!"}},null,{"$f":"MAX(O70:O81)","v":0},{"$f":"AVERAGE(P70:P81)","v":{"$error":"#DIV/0!"}},{"$f":"MAX(Q70:Q81)","v":0}]

{"sheet":"NH3","index":22,"n_rows":79,"n_cols":17,"rows_kept":79,"cut":false,"hidden":false,"merged":[[3,16,7,18],[9,16,11,18],[12,16,15,18],[66,9,78,9],[4,1,4,3],[4,4,4,6],[4,9,4,14],[6,9,18,9],[21,9,33,9],[36,9,48,9],[47,0,47,6],[48,0,51,6],[51,9,63,9],[18,4,18,6]]}
[{"$f":"+'Cover Page'!$B$29","v":"Annual Performance Report 2024"},null,null,null,{"$f":"+'Cover Page'!$B$33","v":"Wolverhampton Energy from Waste Facility "}]
[]
["Monitoring of Ammnonia emissions ",null,null,"Whole Installation",null,null,"See  Notes in Cell Q3",null,null,{"$f":"+A3","v":"Monitoring of Ammnonia emissions "},null,null,null,"Per Combustion Line",null,null,"Notes:"]
[null,null,null,null,null,null,null,null,null,null,null,null,null,null,null,null,"User to add logic to complete Whole installation, Table A5:G18. From the data in Per Combustion Line, Table J6:O79, subject to No. of lines installed"]
[{"$f":"+'Cover Page'!C39","v":2024},"1/2 Hourly Reference Periods",null,null,"Daily Reference Periods"]
["mg/Nm3","1/2 hourly NH3 ELV","Monthly mean of half-hourly averages","Highest half- hourly average","Daily NH3 ELV","Monthly mean of  daily averages","Highest daily average",null,null,{"$f":"+A5","v":2024},"mg/Nm3","Monthly mean of half-hourly averages","Highest half- hourly average","Monthly mean of  daily averages","Highest daily average"]
["Jan","None",{"$f":"AVERAGE(L7,L22)","v":2.145},{"$f":"MAX(M7,M22)","v":18},15,{"$f":"AVERAGE(N7,N22)","v":2.145},{"$f":"MAX(O7,O22)","v":5},null,null,"A1","Jan",3.52,18,3.52,5]
["Feb",{"$f":"+B7","v":"None"},{"$f":"AVERAGE(L8,L23)","v":4.3250000000000002},{"$f":"MAX(M8,M23)","v":174},15,{"$f":"AVERAGE(N8,N23)","v":4.4399999999999995},{"$f":"MAX(O8,O23)","v":17},null,null,null,"Feb",6,62,6.13,11]
["Mar",{"$f":"+B8","v":"None"},3.8849999999999998,119,15,3.54,8,null,null,null,"Mar",5.92,45,5.68,8,null,"Whole Installation table A5:G18:"]
["Apr","None",3.81,55,15,3.4750000000000001,15,null,null,null,"Apr",3,20,2.95,5,null,"Mean: for 1/2 hourly and daily periods calculate mean of values across all operational combustion lines for the month"]
["May","None",4.3150000000000004,50,15,4.2699999999999996,12,null,null,null,"May",2.52,30,2.41,8]
["Jun","None",3.65,41,15,3.665,10,null,null,null,"Jun",1.97,29,1.79,7]
["Jul","None",3.8899999999999997,84,15,3.66,7,null,null,null,"Jul",5.55,84,5.12,7,null,"Maximum: for 1/2 hourly and daily periods use the highest value across all operational combustion lines for the month"]
["Aug","None",5.5049999999999999,98,15,5.5350000000000001,18,null,null,null,"Aug",7.42,98,7.43,18]
["Sep","None",4.92,41,15,4.7,11,null,null,null,"Sep",6.64,41,6.69,11]
["Oct","None",3.7800000000000002,47,15,3.4,7,null,null,null,"Oct",5.36,47,4.5999999999999996,7]
["Nov","None",3.42,41,15,3.35,7,null,null,null,"Nov",4.72,41,4.6100000000000003,7]
["Dec","None",3.5049999999999999,45,15,3.4249999999999998,10,null,null,null,"Dec",4.17,19,4,6]
[null,null,null,null,null,null,null,null,null,null,"Annual",{"$f":"AVERAGE(L7:L18)","v":4.7324999999999999},{"$f":"MAX(M7:M18)","v":98},{"$f":"AVERAGE(N7:N18)","v":4.5774999999999997},{"$f":"MAX(O7:O18)","v":18}]
[]
[null,null,null,null,null,null,null,null,null,{"$f":"+A5","v":2024},"mg/Nm3","Monthly mean of half-hourly averages","Highest half- hourly average","Monthly mean of  daily averages","Highest daily average"]
[null,null,null,null,null,null,null,null,null,"A2","Jan",0.77,13,0.77,2]
[null,null,null,null,null,null,null,null,null,null,"Feb",2.65,174,2.75,17]
[null,null,null,null,null,null,null,null,null,null,"Mar",1.85,119,1.4,4]
[null,null,null,null,null,null,null,null,null,null,"Apr",4.62,55,4,15]
[null,null,null,null,null,null,null,null,null,null,"May",6.11,50,6.13,12]
[null,null,null,null,null,null,null,null,null,null,"Jun",5.33,41,5.54,10]
[null,null,null,null,null,null,null,null,null,null,"Jul",2.23,9,2.2000000000000002,3]
[null,null,null,null,null,null,null,null,null,null,"Aug",3.59,30,3.64,10]
[null,null,null,null,null,null,null,null,null,null,"Sep",3.2,27,2.71,3]
[null,null,null,null,null,null,null,null,null,null,"Oct",2.2000000000000002,9,2.2000000000000002,3]
[null,null,null,null,null,null,null,null,null,null,"Nov",2.12,9,2.09,3]
[null,null,null,null,null,null,null,null,null,null,"Dec",2.84,45,2.85,10]
[null,null,null,null,null,null,null,null,null,null,"Annual",{"$f":"AVERAGE(L22:L33)","v":3.1258333333333326},{"$f":"MAX(M22:M33)","v":174},{"$f":"AVERAGE(N22:N33)","v":3.0233333333333334},{"$f":"MAX(O22:O33)","v":17}]
[]
[null,null,null,null,null,null,null,null,null,{"$f":"+A5","v":2024},"mg/Nm3","Monthly mean of half-hourly averages","Highest half- hourly average","Monthly mean of  daily averages","Highest daily average"]
[null,null,null,null,null,null,null,null,null,"A3","Jan"]
[null,null,null,null,null,null,null,null,null,null,"Feb"]
[null,null,null,null,null,null,null,null,null,null,"Mar"]
[null,null,null,null,null,null,null,null,null,null,"Apr"]
[null,null,null,null,null,null,null,null,null,null,"May"]
[null,null,null,null,null,null,null,null,null,null,"Jun"]
[null,null,null,null,null,null,null,null,null,null,"Jul"]
[null,null,null,null,null,null,null,null,null,null,"Aug"]
[null,null,null,null,null,null,null,null,null,null,"Sep"]
[null,null,null,null,null,null,null,null,null,null,"Oct"]
[null,null,null,null,null,null,null,null,null,null,"Nov"]
["Comments :",null,null,null,null,null,null,null,null,null,"Dec"]
["An indicated ELV value of zero in the table above means that no ammonia limit is/was set in the permit.  ",null,null,null,null,null,null,null,null,null,"Annual",{"$f":"AVERAGE(L37:L48)","v":{"$error":"#DIV/0!"}},{"$f":"MAX(M37:M48)","v":0},{"$f":"AVERAGE(N37:N48)","v":{"$error":"#DIV/0!"}},{"$f":"MAX(O37:O48)","v":0}]
[]
[null,null,null,null,null,null,null,null,null,{"$f":"+A5","v":2024},"mg/Nm3","Monthly mean of half-hourly averages","Highest half- hourly average","Monthly mean of  daily averages","Highest daily average"]
[null,null,null,null,null,null,null,null,null,"A4","Jan"]
[null,null,null,null,null,null,null,null,null,null,"Feb"]
[null,null,null,null,null,null,null,null,null,null,"Mar"]
[null,null,null,null,null,null,null,null,null,null,"Apr"]
[null,null,null,null,null,null,null,null,null,null,"May"]
[null,null,null,null,null,null,null,null,null,null,"Jun"]
[null,null,null,null,null,null,null,null,null,null,"Jul"]
[null,null,null,null,null,null,null,null,null,null,"Aug"]
[null,null,null,null,null,null,null,null,null,null,"Sep"]
[null,null,null,null,null,null,null,null,null,null,"Oct"]
[null,null,null,null,null,null,null,null,null,null,"Nov"]
[null,null,null,null,null,null,null,null,null,null,"Dec"]
[null,null,null,null,null,null,null,null,null,null,"Annual",{"$f":"AVERAGE(L52:L63)","v":{"$error":"#DIV/0!"}},{"$f":"MAX(M52:M63)","v":0},{"$f":"AVERAGE(N52:N63)","v":{"$error":"#DIV/0!"}},{"$f":"MAX(O52:O63)","v":0}]
[]
[null,null,null,null,null,null,null,null,null,{"$f":"+A5","v":2024},"mg/Nm3","Monthly mean of half-hourly averages","Highest half- hourly average","Monthly mean of  daily averages","Highest daily average"]
[null,null,null,null,null,null,null,null,null,"A5","Jan"]
[null,null,null,null,null,null,null,null,null,null,"Feb"]
[null,null,null,null,null,null,null,null,null,null,"Mar"]
[null,null,null,null,null,null,null,null,null,null,"Apr"]
[null,null,null,null,null,null,null,null,null,null,"May"]
[null,null,null,null,null,null,null,null,null,null,"Jun"]
[null,null,null,null,null,null,null,null,null,null,"Jul"]
[null,null,null,null,null,null,null,null,null,null,"Aug"]
[null,null,null,null,null,null,null,null,null,null,"Sep"]
[null,null,null,null,null,null,null,null,null,null,"Oct"]
[null,null,null,null,null,null,null,null,null,null,"Nov"]
[null,null,null,null,null,null,null,null,null,null,"Dec"]
[null,null,null,null,null,null,null,null,null,null,"Annual",{"$f":"AVERAGE(L67:L78)","v":{"$error":"#DIV/0!"}},{"$f":"MAX(M67:M78)","v":0},{"$f":"AVERAGE(N67:N78)","v":{"$error":"#DIV/0!"}},{"$f":"MAX(O67:O78)","v":0}]

{"sheet":"Template changes log","index":23,"n_rows":18,"n_cols":3,"rows_kept":18,"cut":false,"hidden":false,"merged":[]}
["Log of changes to template (Environment Agency use only)"]
[]
["Date","Description of change","New version number and date"]
["2024-01-16","Air (periodic) tab: corrected default O2 reference from 6 to 11% ","Version 23.5a (for incinerators) - 16/01/2024"]
["2024-09-23","Air (periodic) tab: corrected symbol for Thallium to Tl"]
["2024-09-23","Air (periodic) tab: removed last year's references to different emission limit values applying from 03/12/23 and updated all relevant ELVs"]
["2024-09-23","Tabs for continuously monitored pollutants (HCl, SO2 etc.): changed terminology in table headings to improve clarity"]
["2024-09-23","Tabs for continuously monitored pollutants (HCl, SO2 etc.): removed last year's references to different emission limit values applying from 03/12/23 and updated all relevant ELVs"]
["2024-09-23","Perf 1 tab: updated formula for water usage to report m3 rather than litres and corrected error with formula copying operator name"]
["2024-09-23","Operational Summary tab: table added on start-ups and shut-downs"]
["2024-09-23","Operational Summary tab: table added on dioxins and mercury protocols"]
["2024-09-23","Operational Summary tab: table added on AST, QAL 2 and calibration functions"]
["2024-09-23","CO2 N2O tab: various changes made to notes to reflect the fact that most plants should now have calibrated CEMS and flow meters + some have C14 samplers and more up to date industry data","Version 24a (for incinerators) - 23/09/24"]
["2024-11-08","CO2 N2O tab: Changed the N2O CO2 equivalence factor from 298 to 265 in line with recently updated government greenhouse gas figures: https://www.gov.uk/government/publications/greenhouse-gas-reporting-conversion-factors-2024"]
["2024-11-08","CO2 N2O tab: Added an additional requirement for municipal EfW plants to state the yearly average biogenic percentage of the waste by mass, and reference to a document which sets out a methodology for calculating NCV of waste from the results of C14 sampling."]
["2024-11-08","Permit Compliance tab: Two additional columns added + explanatory notes to the table entitled \"Summary of non-compliances under the permit\" to allow CCS scores to be stated where relevant. "]
["2024-11-08","Residue Quality tab: Note added explaining application of TOC and LOI limits and asking operators to report both metrics where measured. ","Version 24.1a (for incinerators) - 08/11/24"]
["2024-11-27","Operational Summary tab: Tables on mercury & dioxins protocols and ASTs removed (covered instead by new tables added to updated Air 9 periodic monitoring form)","Version 24.2a (for incinerators) - 27/11/24"]